{"text_format":"1","workbook":"xlsx","n_sheets":13,"sheets":["00","01","02","Αποτελέσματα Ελέγχου","05","06","07","08","Rules","Π_Χ.Ι.","Παράμετροι","Αποτελέσματα Φόρτωσης","ΜεταβολεςΥποδειγμ"],"not_rendered":{"charts":0,"images":1,"macros":1,"external_links":0,"defined_names":156,"comments":9,"pivot_tables":0},"unopened":[],"bounds":{"document_bytes":16777216,"sheet_cells":100000,"rows_first":2000,"rows_last":500,"rows_between":2000,"halvings":0,"cell_chars":16384,"cell_head_chars":4096},"cells_cut":0,"cells_raw":0,"read":"whole","date_system":"1900"}

{"sheet":"00","index":0,"n_rows":26,"n_cols":5,"rows_kept":26,"cut":false,"hidden":false,"merged":[]}
[]
[]
[]
[]
[]
[]
[]
[]
[]
[null,null,"ΔΙΕΥΘΥΝΣΗ ΧΡΗΜΑΤΟΠΙΣΤΩΤΙΚΗΣ ΣΤΑΘΕΡΟΤΗΤΑΣ"]
[]
[null,null,"ΥΠΟΒΑΛΛΟΜΕΝΟ"]
[]
[]
[null,null,"ΔΑΝΕΙΑΚΗ ΕΠΙΒΑΡΥΝΣΗ ΚΑΙ ΕΠΕΝΔΥΣΕΙΣ ΣΕ ΑΚΙΝΗΤΑ"]
[]
[null,null,null,"Κωδικός Ιδρύματος:"]
[null,null,null,"Επωνυμία:"]
[null,null,null,"Κωδικός Περιόδου Αναφοράς :"]
[null,null,null,"Διορθωτική Αποστολή:"]
[null,null,null,"Υποσύστημα:","FSD01"]
[null,null,null,"Έκδοση Υποδείγματος:","01.01.00"]
[null,null,null,"Έκδοση Παραμέτρων:",2]
[null,null,null,"Τελευταία Αλλαγή Κατάστασης:","10 Φεβ 2025 10:20:39"]
[null,null,null,"Κατάσταση Eλέγχου:","NOK"]
[null,null,null,null,0]

{"sheet":"01","index":1,"n_rows":255,"n_cols":8,"rows_kept":255,"cut":false,"hidden":false,"merged":[]}
[]
[]
[]
[]
[]
[]
[]
[]
[]
["ΔΙΕΥΘΥΝΣΗ ΧΡΗΜΑΤΟΠΙΣΤΩΤΙΚΗΣ ΣΤΑΘΕΡΟΤΗΤΑΣ"]
[]
["ΠΑΡΑΡΤΗΜΑ Ι \nΥποδείγματα οικιστικών ακινήτων"]
[]
[]
[]
[null,null,null,null,null,"Κωδικός Ιδρύματος:",{"$f":"OFFSET(CIAccount,0,1)","v":0}]
[null,null,null,null,null,"Επωνυμία:",{"$f":"OFFSET(CI,0,1)","v":0}]
[null,null,null,null,null,"Κωδικός Περιόδου Αναφοράς :",{"$f":"OFFSET(Valeur,0,1)","v":"00:00:00"}]
[null,null,null,null,null,"Αρμόδιος Υπάλληλος:"]
[null,null,null,null,null,"Αριθμός Τηλεφώνου:"]
[null,null,null,null,null,"Ημερομηνία Συμπλήρωσης:"]
[null,null,null,null,null,"Διορθωτική Αποστολή:",{"$f":"OFFSET(Revision,0,1)","v":0}]
[null,null,null,null,null,"Κωδικός Πίνακα :","FSD01.01"]
[null,null,null,null,null,"Υποσύστημα:",{"$f":"OFFSET(Subsystem,0,1)","v":"FSD01"}]
[null,null,null,null,null,"Έκδοση Υποδείγματος:",{"$f":"_xlfn.SINGLE(OFFSET(TemplateVersion,0,1))","v":"01.01.00"}]
[null,null,null,null,null,"Τελευταία Αλλαγή Κατάστασης:","12 Νοε 2024 17:26:20"]
[null,null,null,null,null,"Κατάσταση Eλέγχου:","NOK"]
[]
[]
[]
[null,null,null,null,"1.1. Ανάλυση ροών δανείων που αφορούν οικιστικά ακίνητα στη διάρκεια της περιόδου - μονομεταβλητές κατανομές δεικτών","Ποσό σύμβασης (σε χιλ. ευρώ)","# (αριθμός συμβάσεων)","Σταθμισμένος μέσος όρος "]
[null,null,null,null,null,"010","020","030"]
[1,null,"1.1","0010","Δάνεια που αφορούν οικιστικά ακίνητα","ΡΟΕΣ"]
[2,2,"1.1","0020","Ροές δανείων"]
[3,3,"1.1","0030","ε/ο για αγορά προς εκμίσθωση "]
[4,4,"1.1","0040","ε/ο για αγορά προς ιδιοκατοίκηση "]
[5,5,"1.1","0050","ε/ο αγοραστές για πρώτη φορά "]
[6,6,"1.1","0060","ε/ο δάνεια σε ξένο νόμισμα "]
[7,7,"1.1","0070","ε/ο πλήρως χρεολυτικά"]
[8,8,"1.1","0080","ε/ο μερικώς χρεολυτικά "]
[9,9,"1.1","0090","ε/ο μη χρεολυτικά"]
[10,10,"1.1","0100","ε/ο ακίνητα σε επιμέρους επικράτειες(1)"]
[11,null,null,"0101","Αρχική περίοδος σταθερού επιτοκίου","ΡΟΕΣ"]
[12,12,"1.1","0102","ΣΤΑΘΜΙΣΜΕΝΟΣ ΜΕΣΟΣ ΟΡΟΣ"]
[13,null,null,"0103","ΚΑΤΑΝΟΜΗ "]
[14,14,"1.1","0110","ε/ο ≤ 1ε αρχική περίοδος σταθερού επιτοκίου"]
[15,15,"1.1","0120","ε/ο (1ε, 5ε] αρχική περίοδος σταθερού επιτοκίου"]
[16,16,"1.1","0130","ε/ο (5ε, 10ε] αρχική περίοδος σταθερού επιτοκίου"]
[17,17,"1.1","0140","ε/ο > 10ε αρχική περίοδος σταθερού επιτοκίου    "]
[18,18,"1.1","0141","Μη διαθέσιμα"]
[19,null,null,"0150","Δείκτης δανείου προς αξία κατά την έγκριση (LTV-O)","ΡΟΕΣ"]
[20,20,"1.1","0160","ΣΤΑΘΜΙΣΜΕΝΟΣ ΜΕΣΟΣ ΟΡΟΣ"]
[21,21,"1.1","0170","ε/ο για αγορά προς εκμίσθωση "]
[22,22,"1.1","0180","ε/ο για αγορά προς ιδιοκατοίκηση"]
[23,23,"1.1","0190","ε/ο αγοραστές για πρώτη φορά "]
[24,24,"1.1","0200","ε/ο δάνεια σε ξένο νόμισμα "]
[25,25,"1.1","0210","ε/ο πλήρως χρεολυτικά "]
[26,26,"1.1","0220","ε/ο μερικώς χρεολυτικά"]
[27,27,"1.1","0230","ε/ο μη χρεολυτικά"]
[28,28,"1.1","0240","ε/ο ακίνητα σε επιμέρους επικράτειες(1)"]
[29,null,null,"0250","ΚΑΤΑΝΟΜΗ "]
[30,30,"1.1","0260","≤ 50%"]
[31,31,"1.1","0270","(50%, 60%]"]
[32,32,"1.1","0280","(60%, 70%]"]
[33,33,"1.1","0290","(70%, 80%]"]
[34,34,"1.1","0300","(80%, 90%]"]
[35,35,"1.1","0310","(90%, 100%]"]
[36,36,"1.1","0320","(100%, 110%]"]
[37,37,"1.1","0330","> 110%"]
[38,38,"1.1","0340","Μη διαθέσιμα"]
[39,null,null,1210,"ε/ο αγοραστές για πρώτη φορά "]
[40,null,null,1220,"ΚΑΤΑΝΟΜΗ "]
[41,41,"1.1",1230,"≤ 50%"]
[42,42,"1.1",1240,"(50%, 60%]"]
[43,43,"1.1",1250,"(60%, 70%]"]
[44,44,"1.1",1260,"(70%, 80%]"]
[45,45,"1.1",1270,"(80%, 90%]"]
[46,46,"1.1",1280,"(90%, 100%]"]
[47,47,"1.1",1290,"(100%, 110%]"]
[48,48,"1.1",1300,"> 110%"]
[49,49,"1.1",1310,"Μη διαθέσιμα"]
[50,null,null,"0350","Δείκτης εξυπηρέτησης δανείου προς εισόδημα κατά την έγκριση (LSTI-O)","ΡΟΕΣ"]
[51,51,"1.1","0360","ΣΤΑΘΜΙΣΜΕΝΟΣ ΜΕΣΟΣ ΟΡΟΣ"]
[52,52,"1.1","0370","ε/ο για αγορά προς εκμίσθωση "]
[53,53,"1.1","0380","ε/ο για αγορά προς ιδιοκατοίκηση "]
[54,54,"1.1","0390","ε/ο αγοραστές για πρώτη φορά "]
[55,55,"1.1","0400","ε/ο δάνεια σε ξένο νόμισμα "]
[56,56,"1.1","0410","ε/ο πλήρως χρεολυτικά"]
[57,57,"1.1","0420","ε/ο μερικώς χρεολυτικά "]
[58,58,"1.1","0430","ε/ο μη χρεολυτικά"]
[59,59,"1.1","0440","ε/ο ακίνητα σε επιμέρους επικράτειες(1)"]
[60,60,"1.1","0450","ε/ο ≤ 1ε αρχική περίοδος σταθερού επιτοκίου"]
[61,61,"1.1","0460","ε/ο (1ε, 5ε] αρχική περίοδος σταθερού επιτοκίου"]
[62,62,"1.1","0470","ε/ο (5ε, 10ε] αρχική περίοδος σταθερού επιτοκίου"]
[63,63,"1.1","0480","ε/ο > 10ε αρχική περίοδος σταθερού επιτοκίου"]
[64,null,null,"0490","ΚΑΤΑΝΟΜΗ ","       "]
[65,65,"1.1","0500","≤ 10%"]
[66,66,"1.1","0510","(10%, 20%]"]
[67,67,"1.1","0520","(20%, 30%]"]
[68,68,"1.1","0530","(30%, 40%]"]
[69,69,"1.1","0540","(40%, 50%]"]
[70,70,"1.1","0550","(50%, 60%]"]
[71,71,"1.1","0560","(60%, 70%]"]
[72,72,"1.1","0561","(70%, 80%]"]
[73,73,"1.1","0562","(80%, 90%]"]
[74,74,"1.1","0563","> 90%    "]
[75,75,"1.1","0570","Μη διαθέσιμα"]
[76,null,null,"0580","Δείκτης δανείου προς εισόδημα κατά την έγκριση (LTI-O)","ΡΟΕΣ"]
[77,77,"1.1","0590","ΣΤΑΘΜΙΣΜΕΝΟΣ ΜΕΣΟΣ ΟΡΟΣ "]
[78,null,null,"0600","ΚΑΤΑΝΟΜΗ "]
[79,79,"1.1","0601","≤ 2,0"]
[80,80,"1.1","0602","(2,0, 2,5]"]
[81,81,"1.1","0610","(2,5, 3,0]"]
[82,82,"1.1","0620","(3,0, 3,5]"]
[83,83,"1.1","0630","(3,5, 4,0]"]
[84,84,"1.1","0640","(4,0, 4,5]"]
[85,85,"1.1","0650","(4,5, 5,0]"]
[86,86,"1.1","0660","(5,0, 5,5]"]
[87,87,"1.1","0670","(5,5, 6,0]"]
[88,88,"1.1","0680","(6,0, 6,5]"]
[89,89,"1.1","0681","(6,5, 7,0]"]
[90,90,"1.1","0682","> 7,0"]
[91,91,"1.1","0690","Μη διαθέσιμα"]
[92,null,null,"0700","Δείκτης χρέους προς εισόδημα κατά την έγκριση (DTI-O)","ΡΟΕΣ"]
[93,93,"1.1","0710","ΣΤΑΘΜΙΣΜΕΝΟΣ ΜΕΣΟΣ ΟΡΟΣ"]
[94,null,null,"0720","ΚΑΤΑΝΟΜΗ "]
[95,95,"1.1","0721","≤ 2,0"]
[96,96,"1.1","0722","(2,0, 2,5]"]
[97,97,"1.1","0730","(2,5, 3,0]"]
[98,98,"1.1","0740","(3,0, 3,5]"]
[99,99,"1.1","0750","(3,5, 4,0]"]
[100,100,"1.1","0760","(4,0, 4,5]"]
[101,101,"1.1","0770","(4,5, 5,0]"]
[102,102,"1.1","0780","(5,0, 5,5]"]
[103,103,"1.1","0790","(5,5, 6,0]"]
[104,104,"1.1","0800","(6,0, 6,5]"]
[105,105,"1.1","0810","(6,5, 7,0]"]
[106,106,"1.1","0820","(7,0, 8,0]"]
[107,107,"1.1","0821","(8,0, 9,0]"]
[108,108,"1.1","0822","> 9,0"]
[109,109,"1.1","0830","Μη διαθέσιμα"]
[110,null,null,"0840","Δείκτης εξυπηρέτησης χρέους προς εισόδημα κατά την έγκριση (DSTI-O) ","ΡΟΕΣ"]
[111,111,"1.1","0850","ΣΤΑΘΜΙΣΜΕΝΟΣ ΜΕΣΟΣ ΟΡΟΣ "]
[112,112,"1.1",1320,"ε/ο για αγορά προς εκμίσθωση "]
[113,113,"1.1",1330,"ε/ο για αγορά προς ιδιοκατοίκηση "]
[114,114,"1.1",1340,"ε/ο αγοραστές για πρώτη φορά "]
[115,115,"1.1",1350,"ε/ο δάνεια σε ξένο νόμισμα "]
[116,116,"1.1",1360,"ε/ο πλήρως χρεολυτικά"]
[117,117,"1.1",1370,"ε/ο μερικώς χρεολυτικά "]
[118,118,"1.1",1380,"ε/ο μη χρεολυτικά"]
[119,119,"1.1",1390,"ε/ο ακίνητα σε επιμέρους επικράτειες(1)"]
[120,120,"1.1",1400,"ε/ο ≤ 1ε αρχική περίοδος σταθερού επιτοκίου"]
[121,121,"1.1",1410,"ε/ο (1ε, 5ε] αρχική περίοδος σταθερού επιτοκίου"]
[122,122,"1.1",1420,"ε/ο (5ε, 10ε] αρχική περίοδος σταθερού επιτοκίου"]
[123,123,"1.1",1430,"ε/ο > 10ε αρχική περίοδος σταθερού επιτοκίου"]
[124,null,null,"0860","ΚΑΤΑΝΟΜΗ"]
[125,125,"1.1","0870","≤ 10%"]
[126,126,"1.1","0880","(10%, 20%]"]
[127,127,"1.1","0890","(20%, 30%]"]
[128,128,"1.1","0900","(30%, 40%]"]
[129,129,"1.1","0910","(40%, 50%]"]
[130,130,"1.1","0920","(50%, 60%]"]
[131,131,"1.1","0930","(60%, 70%]"]
[132,132,"1.1","0931","(70%, 80%]"]
[133,133,"1.1","0932","(80%, 90%]"]
[134,134,"1.1","0933","> 90%    "]
[135,135,"1.1","0940","Μη διαθέσιμα"]
[136,null,null,1440,"ε/ο αγοραστές για πρώτη φορά "]
[137,null,null,1450,"ΚΑΤΑΝΟΜΗ "]
[138,138,"1.1",1460,"≤ 10%"]
[139,139,"1.1",1470,"(10%, 20%]"]
[140,140,"1.1",1480,"(20%, 30%]"]
[141,141,"1.1",1490,"(30%, 40%]"]
[142,142,"1.1",1500,"(40%, 50%]"]
[143,143,"1.1",1510,"(50%, 60%]"]
[144,144,"1.1",1520,"(60%, 70%]"]
[145,145,"1.1",1530,"(70%, 80%]"]
[146,146,"1.1",1540,"(80%, 90%]"]
[147,147,"1.1",1550,"> 90%    "]
[148,148,"1.1",1560,"Μη διαθέσιμα"]
[149,null,null,"0950","Διάρκειες κατά την έγκριση ","ΡΟΕΣ "]
[150,150,"1.1","0960","ΣΤΑΘΜΙΣΜΕΝΟΣ ΜΕΣΟΣ ΟΡΟΣ"]
[151,null,null,"0970","ΚΑΤΑΝΟΜΗ "]
[152,152,"1.1","0980","≤ 5ε"]
[153,153,"1.1","0990","(5ε, 10ε]"]
[154,154,"1.1","1000","(10ε, 15ε]"]
[155,155,"1.1","1010","(15ε, 20ε]"]
[156,156,"1.1","1020","(20ε, 25ε]"]
[157,157,"1.1","1030","(25ε, 30ε]"]
[158,158,"1.1","1040","(30ε, 35ε]"]
[159,159,"1.1","1050","> 35ε"]
[160,160,"1.1","1060","Μη διαθέσιμα"]
[null,null,null,null,"1.2. Ανάλυση ροών δανείων που αφορούν οικιστικά ακίνητα στη διάρκεια της περιόδου, στα οποία δεν έχουν εφαρμογή τα μακροπροληπτικά μέτρα της ΠΕΕ 227/1/8.3.2024","Ποσό σύμβασης (σε χιλ. ευρώ)","# (αριθμός συμβάσεων)","Σταθμισμένος μέσος όρος "]
[null,null,null,null,null,"010","020","030"]
[201,null,null,1570,"Δάνεια που αφορούν οικιστικά ακίνητα στα οποία δεν έχουν εφαρμογή τα μακροπροληπτικά μέτρα της ΠΕΕ 227/1/8.3.2024","ΡΟΕΣ"]
[202,164,"1.2",1580,"Ροές δανείων"]
[203,165,"1.2",1590,"ε/ο αγοραστές για πρώτη φορά "]
[204,null,null,1600,"Δείκτης δανείου προς αξία κατά την έγκριση (LTV-O)","ΡΟΕΣ"]
[205,null,null,1610,"ΚΑΤΑΝΟΜΗ "]
[206,168,"1.2",1620,"≤ 80%"]
[207,169,"1.2",1630,"(80%, 90%]"]
[208,170,"1.2",1640,"> 90%"]
[209,171,"1.2",1650,"Μη διαθέσιμα"]
[210,null,null,1660,"ε/ο αγοραστές για πρώτη φορά "]
[211,null,null,1670,"ΚΑΤΑΝΟΜΗ "]
[212,174,"1.2",1680,"≤ 80%"]
[213,175,"1.2",1690,"(80%, 90%]"]
[214,176,"1.2",1700,"> 90%"]
[215,177,"1.2",1710,"Μη διαθέσιμα"]
[216,null,null,1720,"Δείκτης εξυπηρέτησης χρέους προς εισόδημα κατά την έγκριση (DSTI-O) ","ΡΟΕΣ"]
[217,null,null,1730,"ΚΑΤΑΝΟΜΗ"]
[218,180,"1.2",1740,"≤ 40%"]
[219,181,"1.2",1750,"(40%, 50%]"]
[220,182,"1.2",1760,"> 50%    "]
[221,183,"1.2",1770,"Μη διαθέσιμα"]
[222,null,null,1780,"ε/ο αγοραστές για πρώτη φορά "]
[223,null,null,1790,"ΚΑΤΑΝΟΜΗ "]
[224,186,"1.2",1800,"≤ 40%"]
[225,187,"1.2",1810,"(40%, 50%]"]
[226,188,"1.2",1820,"> 50%    "]
[227,189,"1.2",1830,"Μη διαθέσιμα"]
[null,null,null,null,"1.3 Ανάλυση υπολοίπων δανείων που αφορούν οικιστικά ακίνητα","Ακαθάριστη λογιστική αξία (ποσά σε χιλ. ευρώ)","# (αριθμός συμβάσεων)","Σταθμισμένος μέσος όρος "]
[null,null,null,null,null,"010","020","030"]
[301,null,null,1070,"Επισκόπηση χαρτοφυλακίου δανείων που αφορούν οικιστικά ακίνητα","ΥΠΟΛΟΙΠΑ"]
[302,193,"1.3",1080,"Υπόλοιπα δανείων"]
[303,null,null,1090,"Τρέχων δείκτης δανείου προς αξία (LTV-C)","ΥΠΟΛΟΙΠΑ"]
[304,195,"1.3",1100,"ΣΤΑΘΜΙΣΜΕΝΟΣ ΜΕΣΟΣ ΟΡΟΣ"]
[305,null,null,1110,"ΚΑΤΑΝΟΜΗ "]
[306,197,"1.3",1120,"≤ 50%"]
[307,198,"1.3",1130,"(50%, 60%]"]
[308,199,"1.3",1140,"(60%, 70%]"]
[309,200,"1.3",1150,"(70%, 80%]"]
[310,201,"1.3",1160,"(80%, 90%]"]
[311,202,"1.3",1170,"(90%, 100%]"]
[312,203,"1.3",1180,"(100%, 110%]"]
[313,204,"1.3",1190,"> 110%"]
[314,205,"1.3",1200,"Μη διαθέσιμα"]
[315,null,null,1840,"ε/ο δάνεια που αφορούν οικιστικά ακίνητα και εγκρίθηκαν μετά την 01/01/2025","ΥΠΟΛΟΙΠΑ"]
[316,207,"1.3",1850,"Υπόλοιπα δανείων"]
[317,208,"1.3",1860,"ε/ο μη εξυπηρετούμενα"]
[318,null,null,1870,"Τρέχων δείκτης δανείου προς αξία (LTV-C)","ΥΠΟΛΟΙΠΑ"]
[319,210,"1.3",1880,"ΣΤΑΘΜΙΣΜΕΝΟΣ ΜΕΣΟΣ ΟΡΟΣ"]
[320,null,null,1890,"ΚΑΤΑΝΟΜΗ "]
[321,212,"1.3",1900,"≤ 50%"]
[322,213,"1.3",1910,"(50%, 60%]"]
[323,214,"1.3",1920,"(60%, 70%]"]
[324,215,"1.3",1930,"(70%, 80%]"]
[325,216,"1.3",1940,"(80%, 90%]"]
[326,217,"1.3",1950,"(90%, 100%]"]
[327,218,"1.3",1960,"(100%, 110%]"]
[328,219,"1.3",1970,"> 110%"]
[329,220,"1.3",1980,"Μη διαθέσιμα"]
[]
[]
[null,null,null," (1) Δάνεια που αφορούν οικιστικά ακίνητα τα οποία χορηγούνται εντός ελληνικού χρηματοπιστωτικού συστήματος μπορεί να εξασφαλίζονται με οικιστικά ακίνητα που βρίσκονται σε ξένες επικράτειες.      "]

{"sheet":"02","index":2,"n_rows":132,"n_cols":10,"rows_kept":132,"cut":false,"hidden":false,"merged":[[30,3,31,3]]}
[]
[]
[]
[]
[]
[]
[]
[]
[]
["ΔΙΕΥΘΥΝΣΗ ΧΡΗΜΑΤΟΠΙΣΤΩΤΙΚΗΣ ΣΤΑΘΕΡΟΤΗΤΑΣ"]
[]
["ΠΑΡΑΡΤΗΜΑ Ι \nΥποδείγματα οικιστικών ακινήτων"]
[]
[]
[]
[null,null,null,null,null,"Κωδικός Ιδρύματος:",{"$f":"OFFSET(CIAccount,0,1)","v":0}]
[null,null,null,null,null,"Επωνυμία:",{"$f":"OFFSET(CI,0,1)","v":0}]
[null,null,null,null,null,"Κωδικός Περιόδου Αναφοράς :",{"$f":"OFFSET(Valeur,0,1)","v":"00:00:00"}]
[null,null,null,null,null,"Αρμόδιος Υπάλληλος:"]
[null,null,null,null,null,"Αριθμός Τηλεφώνου:"]
[null,null,null,null,null,"Ημερομηνία Συμπλήρωσης:"]
[null,null,null,null,null,"Διορθωτική Αποστολή:",{"$f":"OFFSET(Revision,0,1)","v":0}]
[null,null,null,null,null,"Υποσύστημα:",{"$f":"OFFSET(Subsystem,0,1)","v":"FSD01"}]
[null,null,null,null,null,"Έκδοση Υποδείγματος:",{"$f":"_xlfn.SINGLE(OFFSET(TemplateVersion,0,1))","v":"01.01.00"}]
[null,null,null,null,null,"Τελευταία Αλλαγή Κατάστασης:","10 Φεβ 2025 10:18:14"]
[null,null,null,null,null,"Κατάσταση Eλέγχου:","NOK"]
[]
[]
[]
[]
[null,null,null,"2. Ανάλυση ροών δανείων που αφορούν οικιστικά ακίνητα στη διάρκεια της περιόδου - από κοινού κατανομές δεικτών","ΡΟΕΣ"]
[null,null,null,null,"Ποσό σύμβασης (σε χιλ. ευρώ)","# (αριθμός συμβάσεων)","Ποσό σύμβασης (σε χιλ. ευρώ)","# (αριθμός συμβάσεων)","Ποσό σύμβασης (σε χιλ. ευρώ)","# (αριθμός συμβάσεων)"]
[null,null,null,null,"010","020","030","040","050","060"]
[1,null,"0010",null,"Δείκτης εξυπηρέτησης δανείου προς εισόδημα κατά την έγκριση (LSTI-O) - Κατανομή ανά διάρκεια δανείου κατά την έγκριση"]
[2,null,"0020","Δείκτης δανείου προς αξία κατά την έγκριση  (LTV-O)","≤ 30%",null,"(30%, 50%]",null,"> 50%"]
[3,null,"0030","LTV-O  ≤ 80% "]
[4,4,"0040","        ≤ 20ε"]
[5,5,"0050","        (20ε, 25ε]"]
[6,6,"0060","        > 25ε"]
[7,null,"0070","LTV-O (80%, 90%] "]
[8,8,"0080","        ≤ 20ε"]
[9,9,"0090","        (20ε, 25ε]"]
[10,10,"0100","        > 25ε"]
[11,null,"0110","LTV-O (90%, 100%]  "]
[12,12,"0120","        ≤ 20ε"]
[13,13,"0130","        (20ε, 25ε]"]
[14,14,"0140","        > 25ε"]
[15,null,"0141","LTV-O (100%, 110%] "]
[16,16,"0142","        ≤ 20ε"]
[17,17,"0143","        (20ε, 25ε]"]
[18,18,"0144","        > 25ε"]
[19,null,"0150","LTV-O > 110% "]
[20,20,"0160","        ≤ 20ε"]
[21,21,"0170","        (20ε, 25ε]"]
[22,22,"0180","        > 25ε"]
[23,null,"0190",null,"Δείκτης εξυπηρέτησης δανείου προς εισόδημα κατά την έγκριση  (LSTI-O)"]
[24,null,"0200","Αρχική περίοδος σταθερού επιτοκίου","≤ 30%",null,"(30%, 50%]",null,"> 50%"]
[25,25,"0210","        ε/ο ≤ 1ε"]
[26,26,"0220","        ε/ο (1ε; 5ε]"]
[27,27,"0230","        ε/ο (5ε, 10ε]"]
[28,28,"0240","        ε/ο > 10ε"]
[29,null,"0250",null,"Δείκτης χρέους προς εισόδημα κατά την έγκριση (DTI-O)"]
[30,null,"0260","Δείκτης δανείου προς αξία κατά την έγκριση (LTV-O)","≤ 4",null," (4, 6]",null,"> 6"]
[31,null,"0270","LTV-O  ≤ 80% "]
[32,32,"0271","        ≤ 20ε"]
[33,33,"0272","        (20ε, 25ε]"]
[34,34,"0273","        > 25ε"]
[35,null,"0280","LTV-O (80%, 90%] "]
[36,36,"0281","        ≤ 20ε"]
[37,37,"0282","        (20ε, 25ε]"]
[38,38,"0283","        > 25ε"]
[39,null,"0290","LTV-O (90%, 100%]  "]
[40,40,"0291","        ≤ 20ε"]
[41,41,"0292","        (20ε, 25ε]"]
[42,42,"0293","        > 25ε"]
[43,null,"0294","LTV-O (100%, 110%] "]
[44,44,"0295","        ≤ 20ε"]
[45,45,"0296","        (20ε, 25ε]"]
[46,46,"0297","        > 25ε"]
[47,null,"0300","LTV-O > 110% "]
[48,48,"0400","        ≤ 20ε"]
[49,49,"0500","        (20ε, 25ε]"]
[50,50,"0600","        > 25ε"]
[51,null,"0700",null,"Δείκτης εξυπηρέτησης χρέους προς εισόδημα κατά την έγκριση  (DSTI-O) - Κατανομή ανά διάρκεια δανείου κατά την έγκριση"]
[52,null,"0800","Δείκτης δανείου προς αξία κατά την έγκριση (LTV-O)","≤ 40%",null,"(40%, 50%]",null,"> 50%"]
[53,null,"0900","LTV-O  ≤ 80% "]
[54,54,"1000","        ≤ 20ε"]
[55,55,"1100","        (20ε, 25ε]"]
[56,56,"1200","        > 25ε"]
[57,null,"1300","LTV-O (80%, 90%] "]
[58,58,"1400","        ≤ 20ε"]
[59,59,"1500","        (20ε, 25ε]"]
[60,60,"1600","        > 25ε"]
[61,null,"1700","LTV-O (90%, 100%] "]
[62,62,"1800","        ≤ 20ε"]
[63,63,"1900","        (20ε, 25ε]"]
[64,64,"2000","        > 25ε"]
[65,null,"2100","LTV-O (100%, 110%] "]
[66,66,"2200","        ≤ 20ε"]
[67,67,"2300","        (20ε, 25ε]"]
[68,68,"2400","        > 25ε"]
[69,null,"2500","LTV-O > 110% "]
[70,70,"2600","        ≤ 20ε"]
[71,71,"2700","        (20ε, 25ε]"]
[72,72,"2800","        > 25ε"]
[73,null,"2900",null,"Δείκτης εξυπηρέτησης χρέους προς εισόδημα κατά την έγκριση  (DSTI-O) - Κατανομή ανά διάρκεια δανείου κατά την έγκριση ε/ο αγοραστής για πρώτη φορά"]
[74,null,"3000","Δείκτης δανείου προς αξία κατά την έγκριση (LTV-O)","≤ 40%",null,"(40%, 50%]",null,"> 50%"]
[75,null,"3100","LTV-O  ≤ 80% "]
[76,76,"3200","        ≤ 20ε"]
[77,77,"3300","        (20ε, 25ε]"]
[78,78,"3400","        > 25ε"]
[79,null,"3500","LTV-O (80%, 90%] "]
[80,80,"3600","        ≤ 20ε"]
[81,81,"3700","        (20ε, 25ε]"]
[82,82,"3800","        > 25ε"]
[83,null,"3900","LTV-O (90%, 100%] "]
[84,84,"4000","        ≤ 20ε"]
[85,85,"4100","        (20ε, 25ε]"]
[86,86,"4200","        > 25ε"]
[87,null,"4300","LTV-O (100%, 110%] "]
[88,88,"4400","        ≤ 20ε"]
[89,89,"4500","        (20ε, 25ε]"]
[90,90,"4600","        > 25ε"]
[91,null,"4700","LTV-O > 110% "]
[92,92,"4800","        ≤ 20ε"]
[93,93,"4900","        (20ε, 25ε]"]
[94,94,"5000","        > 25ε"]
[]
[]
[null,null,null,"ΡΟΕΣ = κάθε νέο δάνειο που εγκρίθηκε, και που, έστω εν μέρει, εκταμιεύθηκε κατά τη διάρκεια της περιόδου αναφοράς, καθώς και κάθε υφιστάμενο δάνειο για το οποίο εγκρίθηκε αύξηση του πιστωτικού του ορίου εντός της περιόδου αναφοράς.    "]
[null,null,null,"ε = έτος (έτη)          "]
[null,null,null,"ε/ο = εκ των οποίων "]

{"sheet":"Αποτελέσματα Ελέγχου","index":3,"n_rows":3,"n_cols":1,"rows_kept":3,"cut":false,"hidden":true,"merged":[]}
["Το πεδίο 'Αρμόδιος Υπάλληλος' είναι υποχρεωτικό. ('02'!$G$19)"]
["Ο έλεγχος διακόπηκε."]
["Ο έλεγχος για το Φύλλο 02 δεν ολοκληρώθηκε με επιτυχία.\n\nΑφού γίνουν οι απαραίτητες διορθώσεις ο έλεγχος θα πρέπει να επαναληφθεί."]

{"sheet":"05","index":4,"n_rows":62,"n_cols":10,"rows_kept":62,"cut":false,"hidden":false,"merged":[[30,9,31,9],[48,4,49,4],[50,4,54,4],[55,4,57,4],[44,9,45,9],[34,4,35,4],[36,4,40,4],[41,4,43,4]]}
[]
[]
[]
[]
[]
[]
[]
[]
["ΔΙΕΥΘΥΝΣΗ ΧΡΗΜΑΤΟΠΙΣΤΩΤΙΚΗΣ ΣΤΑΘΕΡΟΤΗΤΑΣ"]
[]
["ΠΑΡΑΡΤΗΜΑ IΙ\nΠίνακες επαγγελματικών ακινήτων"]
[]
[]
[]
[]
[null,null,null,null,null,null,"Κωδικός Πιστωτικού Ιδρύματος :",{"$f":"OFFSET(CIAccount,0,1)","v":0}]
[null,null,null,null,null,null,"Επωνυμία:",{"$f":"OFFSET(CI,0,1)","v":0}]
[null,null,null,null,null,null,"Ημερομηνία Στοιχείων :",{"$f":"OFFSET(Valeur,0,1)","v":"00:00:00"}]
[null,null,null,null,null,null,"Αρμόδιος Υπάλληλος :"]
[null,null,null,null,null,null,"Αριθμός Τηλεφώνου :"]
[null,null,null,null,null,null,"Ημερομηνία Συμπλήρωσης :"]
[null,null,null,null,null,null,"Διορθωτική Αποστολή :",{"$f":"OFFSET(Revision,0,1)","v":0}]
[null,null,null,null,null,null,"Κωδικός Πίνακα :","FSD01.05"]
[null,null,null,null,null,null,"Υποσύστημα :",{"$f":"OFFSET([0]!Subsystem,0,1)","v":"FSD01"}]
[null,null,null,null,null,null,"Έκδοση Υποδείγματος :",{"$f":"_xlfn.SINGLE(OFFSET(TemplateVersion,0,1))","v":"01.01.00"}]
[null,null,null,null,null,null,"Τελευταία Αλλαγή Κατάστασης :","15 Δεκ 2020 11:39:15"]
[null,null,null,null,null,null,"Κατάσταση Eλέγχου :","OK"]
[]
[]
[]
[null,null,null,null,"3.1. Ανάλυση ροών επενδύσεων σε επαγγελματικά ακίνητα και προσαρμογών αποτίμησης στη διάρκεια της περιόδου",null,"Λογιστική αξία (ποσά σε χιλ. ευρώ)",null,null,"Προσαρμογές αποτίμησης (ποσά σε χιλ. ευρώ)"]
[null,null,null,null,null,null,null,"Αποσβεσμένο κόστος","Εύλογη αξία"]
[null,null,null,null,null,null,"010","020","030","040"]
[101,1,"3.1","0010","Επενδύσεις σε επαγγελματικά ακίνητα"]
[102,2,"3.1","0020","Με βάση τον τρόπο διακράτησης","Άμεσες επενδύσεις επαγγελματικών ακινήτων"]
[103,3,"3.1","0030",null,"Έμμεσες επενδύσεις επαγγελματικών ακινήτων"]
[104,4,"3.1","0040","Με βάση την κατηγορία ακινήτου(1)","Γραφεία"]
[105,5,"3.1","0050",null,"Εμπορικά"]
[106,6,"3.1","0060",null,"Βιομηχανικά"]
[107,7,"3.1","0070",null,"Οικιστικά"]
[108,8,"3.1","0080",null,"Λοιπά"]
[109,9,"3.1","0090","Με βάση την τοποθεσία(1)","Εγχώρια Προνομιακή"]
[110,10,"3.1","0100",null,"Εγχώρια μη προνομιακή"]
[111,11,"3.1","0110",null,"Αλλοδαπή"]
[null,null," ",null,"3.5. Ανάλυση υπολοίπων επενδύσεων σε επαγγελματικά ακίνητα και προσαρμογών αποτίμησης",null,"Λογιστική αξία (ποσά σε χιλ. ευρώ)",null,null,"Προσαρμογές αποτίμησης (ποσά σε χιλ. ευρώ)"]
[null,null," ",null,null,null,null,"Αποσβεσμένο κόστος","Εύλογη αξία"]
[null,null," ",null,null,null,"010","020","030","040"]
[201,15,"3.5","0010","Επενδύσεις σε επαγγελματικά ακίνητα"]
[202,16,"3.5","0020","Με βάση τον τρόπο διακράτησης","Άμεσες επενδύσεις επαγγελματικών ακινήτων"]
[203,17,"3.5","0030",null,"Έμμεσες επενδύσεις επαγγελματικών ακινήτων"]
[204,18,"3.5","0040","Με βάση την κατηγορία ακινήτου(1)","Γραφεία"]
[205,19,"3.5","0050",null,"Εμπορικά"]
[206,20,"3.5","0060",null,"Βιομηχανικά"]
[207,21,"3.5","0070",null,"Οικιστικά"]
[208,22,"3.5","0080",null,"Λοιπά"]
[209,23,"3.5","0090","Με βάση την τοποθεσία(1)","Εγχώρια Προνομιακή"]
[210,24,"3.5","0100",null,"Εγχώρια μη προνομιακή"]
[211,25,"3.5","0110",null,"Αλλοδαπή"]
[]
[]
[]
[null,null,null," (1) Υποβάλεται μόνο για τις άμεσες επενδύσεις σε επαγγελματικά ακίνητα."]

{"sheet":"06","index":5,"n_rows":221,"n_cols":10,"rows_kept":221,"cut":false,"hidden":false,"merged":[[73,4,77,4],[78,4,80,4],[81,4,85,4],[88,7,89,7],[88,8,88,9],[92,4,96,4],[97,4,99,4],[100,4,104,4],[192,4,194,4],[145,8,145,9],[183,8,183,9],[183,7,184,7],[187,4,191,4],[107,8,107,9],[111,4,115,4],[116,4,118,4],[119,4,123,4],[124,4,142,4],[107,7,108,7],[195,4,199,4],[200,4,218,4],[145,7,146,7],[149,4,153,4],[154,4,156,4],[157,4,161,4],[162,4,180,4],[48,4,66,4],[31,7,32,7],[31,8,31,9],[35,4,39,4],[40,4,42,4],[43,4,47,4]]}
[6]
[]
[]
[]
[]
[]
[]
[]
[null,null,null,null,"ΔΙΕΥΘΥΝΣΗ ΧΡΗΜΑΤΟΠΙΣΤΩΤΙΚΗΣ ΣΤΑΘΕΡΟΤΗΤΑΣ"]
[]
[null,null,null,null,"ΠΑΡΑΡΤΗΜΑ IΙ\nΠίνακες επαγγελματικών ακινήτων"]
[]
[]
[]
[]
[null,null,null,null,null,"Κωδικός Πιστωτικού Ιδρύματος :",{"$f":"OFFSET(CIAccount,0,1)","v":0}]
[null,null,null,null,null,"Επωνυμία:",{"$f":"OFFSET(CI,0,1)","v":0}]
[null,null,null,null,null,"Ημερομηνία Στοιχείων :",{"$f":"OFFSET(Valeur,0,1)","v":"00:00:00"}]
[null,null,null,null,null,"Αρμόδιος Υπάλληλος :"]
[null,null,null,null,null,"Αριθμός Τηλεφώνου :"]
[null,null,null,null,null,"Ημερομηνία Συμπλήρωσης :"]
[null,null,null,null,null,"Διορθωτική Αποστολή :",{"$f":"OFFSET(Revision,0,1)","v":0}]
[null,null,null,null,null,"Κωδικός Πίνακα :","FSD01.06"]
[null,null,null,null,null,"Υποσύστημα :",{"$f":"OFFSET([0]!Subsystem,0,1)","v":"FSD01"}]
[null,null,null,null,null,"Έκδοση Υποδείγματος :",{"$f":"_xlfn.SINGLE(OFFSET(TemplateVersion,0,1))","v":"01.01.00"}]
[null,null,null,null,null,"Τελευταία Αλλαγή Κατάστασης :","15 Δεκ 2020 11:39:15"]
[null,null,null,null,null,"Κατάσταση Eλέγχου :","OK"]
[]
[]
[]
[null,null,null,null,null,null,"Ποσό σύμβασης (σε χιλ. ευρώ)"]
[null,null,null,null,"3.2. Ανάλυση ροών δανείων που αφορούν επαγγελματικά ακίνητα στη διάρκεια της περιόδου",null,null,"Λόγω εξασφάλισης","Λόγω σκοπού"]
[null,null,null,null,null,null,null,null,null,"ε/ο λόγω εξασφάλισης"]
[null,null,null,null,null,null,"010","020","030","040"]
[101,1,"3.2","0010","Δάνεια που αφορούν επαγγελματικά ακίνητα "]
[102,2,"3.2","0020","Με βάση την κατηγορία του ακινήτου της εξασφάλισης","Γραφεία"]
[103,3,"3.2","0030",null,"Εμπορικά"]
[104,4,"3.2","0040",null,"Βιομηχανικά"]
[105,5,"3.2","0050",null,"Οικιστικά"]
[106,6,"3.2","0060",null,"Λοιπά"]
[107,7,"3.2","0070","Με βάση την τοποθεσία της εξασφάλισης","Εγχώρια Προνομιακή"]
[108,8,"3.2","0080",null,"Εγχώρια μη προνομιακή"]
[109,9,"3.2","0090",null,"Αλλοδαπή"]
[110,10,"3.2","0100","Με βάση τον σκοπό του δανείου","Για την απόκτηση υφιστάμενων ή υπό κατασκευή ακινήτων που κατέχονται από τους ιδιοκτήτες τους για τη διενέργεια των επιχειρήσεων, την επίτευξη των σκοπών ή την άσκηση των δραστηριοτήτων τους"]
[111,11,"3.2","0110",null,"Για την απόκτηση μισθωμένων ακινήτων"]
[112,12,"3.2","0120",null,"Για την απόκτηση ακινήτων που παράγουν εισόδημα (εκτός από μισθωμένα ακίνητα)"]
[113,13,"3.2","0130",null,"Για την απόκτηση επαγγελματικών ακινήτων υπό ανάπτυξη"]
[114,14,"3.2","0140",null,"Για την απόκτηση ακινήτων που κατέχονται ως κοινωνικές κατοικίες"]
[115,15,"3.2","0150","Με βάση τον τομέα οικονομικής δραστηριότητας (κωδικός NACE)","A Γεωργία, δασοκομία και αλιεία"]
[116,16,"3.2","0160",null,"B Ορυχεία και λατομεία"]
[117,17,"3.2","0170",null,"Γ Μεταποίηση"]
[118,18,"3.2","0180",null,"Δ Παροχή ηλεκτρικού ρεύματος, φυσικού αερίου, ατμού και κλιματισμού"]
[119,19,"3.2","0190",null,"Ε Ύδρευση"]
[120,20,"3.2","0200",null,"ΣΤ Κατασκευές"]
[121,21,"3.2","0210",null,"Ζ Χονδρεμπόριο και λιανεμπόριο"]
[122,22,"3.2","0220",null,"Η Μεταφορές και αποθήκευση"]
[123,23,"3.2","0230",null,"Θ Υπηρεσίες καταλύματος και εστίασης"]
[124,24,"3.2","0240",null,"Ι Πληροφορίες και επικοινωνία"]
[125,25,"3.2","0250",null,"Κ Χρηματοπιστωτικές και ασφαλιστικές δραστηριότητες"]
[126,26,"3.2","0260",null,"Λ Διαχείριση ακίνητης περιουσίας"]
[127,27,"3.2","0270",null,"Μ Επαγγελματικές, επιστημονικές και τεχνικές δραστηριότητες"]
[128,28,"3.2","0280",null,"Ν Διοικητικές και υποστηρικτικές δραστηριότητες"]
[129,29,"3.2","0290",null,"Ο Δημόσια διοίκηση και άμυνα, υποχρεωτική κοινωνική ασφάλιση"]
[130,30,"3.2","0300",null,"Π Εκπαίδευση"]
[131,31,"3.2","0310",null,"Ρ Δραστηριότητες σχετικές με την ανθρώπινη υγεία και την κοινωνική μέριμνα"]
[132,32,"3.2","0320",null,"Σ Τέχνες, διασκέδαση και ψυχαγωγία"]
[133,33,"3.2","0330",null,"Τ Άλλες υπηρεσίες"]
[134,34,"3.2","0340","Υπομνηματικό στοιχείο: Δάνεια που αφορούν επαγγελματικά ακίνητα προς μη χρηματοδοτικές εταιρείες"]
[null,null," ",null,null,null,"Ακαθάριστη λογιστική αξία (ποσά σε χιλ. ευρώ)"]
[null,null," ",null,"3.3. Ανάλυση εισροών μη εξυπηρετούμενων δανείων που αφορούν επαγγελματικά ακίνητα στη διάρκεια της περιόδου",null,null,"Λόγω εξασφάλισης","Λόγω σκοπού"]
[null,null,null,null,null,null,null,null,null,"ε/ο λόγω εξασφάλισης"]
[null,null," ",null,null,null,"010","020","030","040"]
[201,39,"3.3","0010","Δάνεια που αφορούν επαγγελματικά ακίνητα"]
[202,40,"3.3","0020","Με βάση την κατηγορία του ακινήτου της εξασφάλισης","Γραφεία"]
[203,41,"3.3","0030",null,"Εμπορικά"]
[204,42,"3.3","0040",null,"Βιομηχανικά"]
[205,43,"3.3","0050",null,"Οικιστικά"]
[206,44,"3.3","0060",null,"Λοιπά"]
[207,45,"3.3","0070","Με βάση την τοποθεσία της εξασφάλισης","Εγχώρια Προνομιακή"]
[208,46,"3.3","0080",null,"Εγχώρια μη προνομιακή"]
[209,47,"3.3","0090",null,"Αλλοδαπή"]
[210,48,"3.3","0100","Με βάση τον σκοπό του δανείου","Για την απόκτηση υφιστάμενων ή υπό κατασκευή ακινήτων που κατέχονται από τους ιδιοκτήτες τους για τη διενέργεια των επιχειρήσεων, την επίτευξη των σκοπών ή την άσκηση των δραστηριοτήτων τους"]
[211,49,"3.3","0110",null,"Για την απόκτηση μισθωμένων ακινήτων"]
[212,50,"3.3","0120",null,"Για την απόκτηση ακινήτων που παράγουν εισόδημα (εκτός από μισθωμένα ακίνητα)"]
[213,51,"3.3","0130",null,"Για την απόκτηση επαγγελματικών ακινήτων υπό ανάπτυξη"]
[214,52,"3.3","0140",null,"Για την απόκτηση ακινήτων που κατέχονται ως κοινωνικές κατοικίες"]
[215,53,"3.3","0150","Υπομνηματικό στοιχείο: Δάνεια που αφορούν επαγγελματικά ακίνητα προς μη χρηματοδοτικές εταιρείες"]
[null,null,null,null,null,null,"Προβλέψεις για ζημίες (ποσά σε χιλ. ευρώ)"]
[null,null,null,null,"3.4 Ανάλυση μεταβολών στις προβλέψεις για ζημίες από δάνεια που αφορούν επαγγελματικά ακίνητα στη διάρκεια της περιόδου",null,null,"Λόγω εξασφάλισης","Λόγω σκοπού"]
[null,null,null,null,null,null,null,null,null,"ε/ο λόγω εξασφάλισης"]
[null,null,null,null,null,null,"010","020","030","040"]
[301,58,"3.4","0010","Δάνεια που αφορούν επαγγελματικά ακίνητα"]
[302,59,"3.4","0020","Με βάση την κατηγορία του ακινήτου της εξασφάλισης","Γραφεία"]
[303,60,"3.4","0030",null,"Εμπορικά"]
[304,61,"3.4","0040",null,"Βιομηχανικά"]
[305,62,"3.4","0050",null,"Οικιστικά"]
[306,63,"3.4","0060",null,"Λοιπά"]
[307,64,"3.4","0070","Με βάση την τοποθεσία της εξασφάλισης","Εγχώρια Προνομιακή"]
[308,65,"3.4","0080",null,"Εγχώρια μη προνομιακή"]
[309,66,"3.4","0090",null,"Αλλοδαπή"]
[310,67,"3.4","0100","Με βάση τον σκοπό του δανείου","Για την απόκτηση υφιστάμενων ή υπό κατασκευή ακινήτων που κατέχονται από τους ιδιοκτήτες τους για τη διενέργεια των επιχειρήσεων, την επίτευξη των σκοπών ή την άσκηση των δραστηριοτήτων τους"]
[311,68,"3.4","0110",null,"Για την απόκτηση μισθωμένων ακινήτων"]
[312,69,"3.4","0120",null,"Για την απόκτηση ακινήτων που παράγουν εισόδημα (εκτός από μισθωμένα ακίνητα)"]
[313,70,"3.4","0130",null,"Για την απόκτηση επαγγελματικών ακινήτων υπό ανάπτυξη"]
[314,71,"3.4","0140",null,"Για την απόκτηση ακινήτων που κατέχονται ως κοινωνικές κατοικίες"]
[315,72,"3.4","0150","Υπομνηματικό στοιχείο: Δάνεια που αφορούν επαγγελματικά ακίνητα προς μη χρηματοδοτικές εταιρείες"]
[null,null,null,null,null,null,"Ακαθάριστη λογιστική αξία (ποσά σε χιλ. ευρώ)"]
[null,null,null,null,"3.6. Ανάλυση υπολοίπων δανείων που αφορούν επαγγελματικά ακίνητα",null,null,"Λόγω εξασφάλισης","Λόγω σκοπού"]
[null,null,null,null,null,null,null,null,null,"ε/ο λόγω εξασφάλισης"]
[null,null,null,null,null,null,"010","020","030","040"]
[401,77,"3.6","0010","Δάνεια που αφορούν επαγγελματικά ακίνητα"]
[402,78,"3.6","0020","Με βάση την κατηγορία του ακινήτου της εξασφάλισης","Γραφεία"]
[403,79,"3.6","0030",null,"Εμπορικά"]
[404,80,"3.6","0040",null,"Βιομηχανικά"]
[405,81,"3.6","0050",null,"Οικιστικά"]
[406,82,"3.6","0060",null,"Λοιπά"]
[407,83,"3.6","0070","Με βάση την τοποθεσία της εξασφάλισης","Εγχώρια Προνομιακή"]
[408,84,"3.6","0080",null,"Εγχώρια μη προνομιακή"]
[409,85,"3.6","0090",null,"Αλλοδαπή"]
[410,86,"3.6","0100","Με βάση τον σκοπό του δανείου","Για την απόκτηση υφιστάμενων ή υπό κατασκευή ακινήτων που κατέχονται από τους ιδιοκτήτες τους για τη διενέργεια των επιχειρήσεων, την επίτευξη των σκοπών ή την άσκηση των δραστηριοτήτων τους"]
[411,87,"3.6","0110",null,"Για την απόκτηση μισθωμένων ακινήτων"]
[412,88,"3.6","0120",null,"Για την απόκτηση ακινήτων που παράγουν εισόδημα (εκτός από μισθωμένα ακίνητα)"]
[413,89,"3.6","0130",null,"Για την απόκτηση επαγγελματικών ακινήτων υπό ανάπτυξη"]
[414,90,"3.6","0140",null,"Για την απόκτηση ακινήτων που κατέχονται ως κοινωνικές κατοικίες"]
[415,91,"3.6","0150","Με βάση τον τομέα οικονομικής δραστηριότητας (κωδικός NACE)","A Γεωργία, δασοκομία και αλιεία"]
[416,92,"3.6","0160",null,"B Ορυχεία και λατομεία"]
[417,93,"3.6","0170",null,"Γ Μεταποίηση"]
[418,94,"3.6","0180",null,"Δ Παροχή ηλεκτρικού ρεύματος, φυσικού αερίου, ατμού και κλιματισμού"]
[419,95,"3.6","0190",null,"Ε Ύδρευση"]
[420,96,"3.6","0200",null,"ΣΤ Κατασκευές"]
[421,97,"3.6","0210",null,"Ζ Χονδρεμπόριο και λιανεμπόριο"]
[422,98,"3.6","0220",null,"Η Μεταφορές και αποθήκευση"]
[423,99,"3.6","0230",null,"Θ Υπηρεσίες καταλύματος και εστίασης"]
[424,100,"3.6","0240",null,"Ι Πληροφορίες και επικοινωνία"]
[425,101,"3.6","0250",null,"Κ Χρηματοπιστωτικές και ασφαλιστικές δραστηριότητες"]
[426,102,"3.6","0260",null,"Λ Διαχείριση ακίνητης περιουσίας"]
[427,103,"3.6","0270",null,"Μ Επαγγελματικές, επιστημονικές και τεχνικές δραστηριότητες"]
[428,104,"3.6","0280",null,"Ν Διοικητικές και υποστηρικτικές δραστηριότητες"]
[429,105,"3.6","0290",null,"Ο Δημόσια διοίκηση και άμυνα, υποχρεωτική κοινωνική ασφάλιση"]
[430,106,"3.6","0300",null,"Π Εκπαίδευση"]
[431,107,"3.6","0310",null,"Ρ Δραστηριότητες σχετικές με την ανθρώπινη υγεία και την κοινωνική μέριμνα"]
[432,108,"3.6","0320",null,"Σ Τέχνες, διασκέδαση και ψυχαγωγία"]
[433,109,"3.6","0330",null,"Τ Άλλες υπηρεσίες"]
[434,110,"3.6","0340","Υπομνηματικό στοιχείο: Δάνεια που αφορούν επαγγελματικά ακίνητα προς μη χρηματοδοτικές εταιρείες"]
[null,null,null,null,null,null,"Ακαθάριστη λογιστική αξία (ποσά σε χιλ. ευρώ)"]
[null,null,null,null,"3.7. Ανάλυση υπολοίπων μη εξυπηρετούμενων δανείων που αφορούν επαγγελματικά ακίνητα",null,null,"Λόγω εξασφάλισης","Λόγω σκοπού"]
[null,null,null,null,null,null,null,null,null,"ε/ο λόγω εξασφάλισης"]
[null,null,null,null,null,null,"010","020","030","040"]
[501,115,"3.7","0010","Μη εξυπηρετούμενα δάνεια που αφορούν επαγγελματικά ακίνητα "]
[502,116,"3.7","0020","Με βάση την κατηγορία του ακινήτου της εξασφάλισης","Γραφεία"]
[503,117,"3.7","0030",null,"Εμπορικά"]
[504,118,"3.7","0040",null,"Βιομηχανικά"]
[505,119,"3.7","0050",null,"Οικιστικά"]
[506,120,"3.7","0060",null,"Λοιπά"]
[507,121,"3.7","0070","Με βάση την τοποθεσία της εξασφάλισης","Εγχώρια Προνομιακή"]
[508,122,"3.7","0080",null,"Εγχώρια μη προνομιακή"]
[509,123,"3.7","0090",null,"Αλλοδαπή"]
[510,124,"3.7","0100","Με βάση τον σκοπό του δανείου","Για την απόκτηση υφιστάμενων ή υπό κατασκευή ακινήτων που κατέχονται από τους ιδιοκτήτες τους για τη διενέργεια των επιχειρήσεων, την επίτευξη των σκοπών ή την άσκηση των δραστηριοτήτων τους"]
[511,125,"3.7","0110",null,"Για την απόκτηση μισθωμένων ακινήτων"]
[512,126,"3.7","0120",null,"Για την απόκτηση ακινήτων που παράγουν εισόδημα (εκτός από μισθωμένα ακίνητα)"]
[513,127,"3.7","0130",null,"Για την απόκτηση επαγγελματικών ακινήτων υπό ανάπτυξη"]
[514,128,"3.7","0140",null,"Για την απόκτηση ακινήτων που κατέχονται ως κοινωνικές κατοικίες"]
[515,129,"3.7","0150","Με βάση τον τομέα οικονομικής δραστηριότητας (κωδικός NACE)","A Γεωργία, δασοκομία και αλιεία"]
[516,130,"3.7","0160",null,"B Ορυχεία και λατομεία"]
[517,131,"3.7","0170",null,"Γ Μεταποίηση"]
[518,132,"3.7","0180",null,"Δ Παροχή ηλεκτρικού ρεύματος, φυσικού αερίου, ατμού και κλιματισμού"]
[519,133,"3.7","0190",null,"Ε Ύδρευση"]
[520,134,"3.7","0200",null,"ΣΤ Κατασκευές"]
[521,135,"3.7","0210",null,"Ζ Χονδρεμπόριο και λιανεμπόριο"]
[522,136,"3.7","0220",null,"Η Μεταφορές και αποθήκευση"]
[523,137,"3.7","0230",null,"Θ Υπηρεσίες καταλύματος και εστίασης"]
[524,138,"3.7","0240",null,"Ι Πληροφορίες και επικοινωνία"]
[525,139,"3.7","0250",null,"Κ Χρηματοπιστωτικές και ασφαλιστικές δραστηριότητες"]
[526,140,"3.7","0260",null,"Λ Διαχείριση ακίνητης περιουσίας"]
[527,141,"3.7","0270",null,"Μ Επαγγελματικές, επιστημονικές και τεχνικές δραστηριότητες"]
[528,142,"3.7","0280",null,"Ν Διοικητικές και υποστηρικτικές δραστηριότητες"]
[529,143,"3.7","0290",null,"Ο Δημόσια διοίκηση και άμυνα, υποχρεωτική κοινωνική ασφάλιση"]
[530,144,"3.7","0300",null,"Π Εκπαίδευση"]
[531,145,"3.7","0310",null,"Ρ Δραστηριότητες σχετικές με την ανθρώπινη υγεία και την κοινωνική μέριμνα"]
[532,146,"3.7","0320",null,"Σ Τέχνες, διασκέδαση και ψυχαγωγία"]
[533,147,"3.7","0330",null,"Τ Άλλες υπηρεσίες"]
[534,148,"3.7","0340","Υπομνηματικό στοιχείο: Δάνεια που αφορούν επαγγελματικά ακίνητα προς μη χρηματοδοτικές εταιρείες"]
[null,null,null,null,null,null,"Προβλέψεις για ζημίες (αξία σε χιλ. €)"]
[null,null,null,null,"3.8. Ανάλυση υπολοίπων προβλέψεων για ζημίες από δάνεια που αφορούν επαγγελματικά ακίνητα ",null,null,"Λόγω εξασφάλισης","Λόγω σκοπού"]
[null,null,null,null,null,null,null,null,null,"ε/ο λόγω εξασφάλισης"]
[null,null,null,null,null,null,"010","020","030","040"]
[601,153,"3.8","0010","Δάνεια που αφορούν επαγγελματικά ακίνητα"]
[602,154,"3.8","0020","Με βάση την κατηγορία του ακινήτου της εξασφάλισης","Γραφεία"]
[603,155,"3.8","0030",null,"Εμπορικά"]
[604,156,"3.8","0040",null,"Βιομηχανικά"]
[605,157,"3.8","0050",null,"Οικιστικά"]
[606,158,"3.8","0060",null,"Λοιπά"]
[607,159,"3.8","0070","Με βάση την τοποθεσία της εξασφάλισης","Εγχώρια Προνομιακή"]
[608,160,"3.8","0080",null,"Εγχώρια μη προνομιακή"]
[609,161,"3.8","0090",null,"Αλλοδαπή"]
[610,162,"3.8","0100","Με βάση τον σκοπό του δανείου","Για την απόκτηση υφιστάμενων ή υπό κατασκευή ακινήτων που κατέχονται από τους ιδιοκτήτες τους για τη διενέργεια των επιχειρήσεων, την επίτευξη των σκοπών ή την άσκηση των δραστηριοτήτων τους"]
[611,163,"3.8","0110",null,"Για την απόκτηση μισθωμένων ακινήτων"]
[612,164,"3.8","0120",null,"Για την απόκτηση ακινήτων που παράγουν εισόδημα (εκτός από μισθωμένα ακίνητα)"]
[613,165,"3.8","0130",null,"Για την απόκτηση επαγγελματικών ακινήτων υπό ανάπτυξη"]
[614,166,"3.8","0140",null,"Για την απόκτηση ακινήτων που κατέχονται ως κοινωνικές κατοικίες"]
[615,167,"3.8","0150","Με βάση τον τομέα οικονομικής δραστηριότητας (κωδικός NACE)","A Γεωργία, δασοκομία και αλιεία"]
[616,168,"3.8","0160",null,"B Ορυχεία και λατομεία"]
[617,169,"3.8","0170",null,"Γ Μεταποίηση"]
[618,170,"3.8","0180",null,"Δ Παροχή ηλεκτρικού ρεύματος, φυσικού αερίου, ατμού και κλιματισμού"]
[619,171,"3.8","0190",null,"Ε Ύδρευση"]
[620,172,"3.8","0200",null,"ΣΤ Κατασκευές"]
[621,173,"3.8","0210",null,"Ζ Χονδρεμπόριο και λιανεμπόριο"]
[622,174,"3.8","0220",null,"Η Μεταφορές και αποθήκευση"]
[623,175,"3.8","0230",null,"Θ Υπηρεσίες καταλύματος και εστίασης"]
[624,176,"3.8","0240",null,"Ι Πληροφορίες και επικοινωνία"]
[625,177,"3.8","0250",null,"Κ Χρηματοπιστωτικές και ασφαλιστικές δραστηριότητες"]
[626,178,"3.8","0260",null,"Λ Διαχείριση ακίνητης περιουσίας"]
[627,179,"3.8","0270",null,"Μ Επαγγελματικές, επιστημονικές και τεχνικές δραστηριότητες"]
[628,180,"3.8","0280",null,"Ν Διοικητικές και υποστηρικτικές δραστηριότητες"]
[629,181,"3.8","0290",null,"Ο Δημόσια διοίκηση και άμυνα, υποχρεωτική κοινωνική ασφάλιση"]
[630,182,"3.8","0300",null,"Π Εκπαίδευση"]
[631,183,"3.8","0310",null,"Ρ Δραστηριότητες σχετικές με την ανθρώπινη υγεία και την κοινωνική μέριμνα"]
[632,184,"3.8","0320",null,"Σ Τέχνες, διασκέδαση και ψυχαγωγία"]
[633,185,"3.8","0330",null,"Τ Άλλες υπηρεσίες"]
[634,186,"3.8","0340","Με βάση το καθεστώς εξυπηρέτησης","Μη εξυπηρετούμενα"]
[635,187,"3.8","0350","Υπομνηματικό στοιχείο: Δάνεια που αφορούν επαγγελματικά ακίνητα προς μη χρηματοδοτικές εταιρείες"]

{"sheet":"07","index":6,"n_rows":77,"n_cols":9,"rows_kept":77,"cut":false,"hidden":false,"merged":[[53,7,53,8],[56,4,62,4],[63,4,67,4],[68,4,73,4],[53,6,54,6],[31,6,32,6],[31,7,31,8],[34,4,40,4],[41,4,45,4],[46,4,51,4]]}
[]
[]
[]
[]
[]
[]
[]
[]
[null,null,null,null,"ΔΙΕΥΘΥΝΣΗ ΧΡΗΜΑΤΟΠΙΣΤΩΤΙΚΗΣ ΣΤΑΘΕΡΟΤΗΤΑΣ"]
[]
[null,null,null,null,"ΠΑΡΑΡΤΗΜΑ IΙ\nΠίνακες επαγγελματικών ακινήτων"]
[]
[]
[]
[]
[null,null,null,null,null,"Κωδικός Πιστωτικού Ιδρύματος :",{"$f":"OFFSET(CIAccount,0,1)","v":0}]
[null,null,null,null,null,"Επωνυμία:",{"$f":"OFFSET(CI,0,1)","v":0}]
[null,null,null,null,null,"Ημερομηνία Στοιχείων :",{"$f":"OFFSET(Valeur,0,1)","v":"00:00:00"}]
[null,null,null,null,null,"Αρμόδιος Υπάλληλος :"]
[null,null,null,null,null,"Αριθμός Τηλεφώνου :"]
[null,null,null,null,null,"Ημερομηνία Συμπλήρωσης :"]
[null,null,null,null,null,"Διορθωτική Αποστολή :",{"$f":"OFFSET(Revision,0,1)","v":0}]
[null,null,null,null,null,"Κωδικός Πίνακα :","FSD01.07"]
[null,null,null,null,null,"Υποσύστημα :",{"$f":"OFFSET([0]!Subsystem,0,1)","v":"FSD01"}]
[null,null,null,null,null,"Έκδοση Υποδείγματος :",{"$f":"_xlfn.SINGLE(OFFSET(TemplateVersion,0,1))","v":"01.01.00"}]
[null,null,null,null,null,"Τελευταία Αλλαγή Κατάστασης :","15 Δεκ 2020 11:39:15"]
[null,null,null,null,null,"Κατάσταση Eλέγχου :","OK"]
[]
[]
[]
[null,null,null,null,null,null,"Ποσό σύμβασης (σε χιλ. ευρώ)"]
[null,null,null,null,"4.1 Ανάλυση δεικτών για ροές δανείων που αφορούν επαγγελματικά ακίνητα στη διάρκεια της περιόδου: κατανομές ανά δείκτη",null,"Λόγω εξασφάλισης","Λόγω σκοπού"]
[null,null,null,null,null,null,null,null,"ε/ο λόγω εξασφάλισης"]
[null,null,null,null,null,null,"010","020","030"]
[101,1,"4.1","0010","Κατανομή δείκτη δανείου προς αξία κατά την έγκριση (LTV-O)","≤ 60%"]
[102,2,"4.1","0020",null,"(60%, 80%]"]
[103,3,"4.1","0030",null,"(80%, 90%]"]
[104,4,"4.1","0040",null,"(90%, 100%]"]
[105,5,"4.1","0050",null,"(100%, 110%]"]
[106,6,"4.1","0060",null,"(110%, 130%]"]
[107,7,"4.1","0070",null,"> 130%"]
[108,8,"4.1","0080","Κατανομή δείκτη κάλυψης τόκων κατά την έγκριση (ICR-O)","≤ 1"]
[109,9,"4.1","0090",null,"(1, 3]"]
[110,10,"4.1","0100",null,"(3, 5]"]
[111,11,"4.1","0110",null,"(5, 10]"]
[112,12,"4.1","0120",null,"> 10"]
[113,13,"4.1","0130","Κατανομή δείκτη εξυπηρέτησης χρέους προς εισόδημα κατά την έγκριση (DSCR-Ο)","≤ 1"]
[114,14,"4.1","0140",null,"(1, 5]"]
[115,15,"4.1","0150",null,"(5, 10]"]
[116,16,"4.1","0160",null,"(10, 20]"]
[117,17,"4.1","0170",null,"(20, 30]"]
[118,18,"4.1","0180",null,"> 30"]
[null,null,null,null,null,null,"Ακαθάριστη λογιστική αξία (ποσά σε χιλ. ευρώ)"]
[null,null,null,null,"4.3 Ανάλυση δεικτών υπολοίπων δανείων που αφορούν επαγγελματικά ακίνητα: κατανομές ανά δείκτη",null,"Λόγω εξασφάλισης","Λόγω σκοπού"]
[null,null,null,null,null,null,null,null,"ε/ο  λόγω εξασφάλισης"]
[null,null,null,null,null,null,"010","020","030"]
[201,23,"4.3","0010","Κατανομή τρέχοντος δείκτη δανείου προς αξία (LTV-C)","≤ 60%"]
[202,24,"4.3","0020",null,"(60%, 80%]"]
[203,25,"4.3","0030",null,"(80%, 90%]"]
[204,26,"4.3","0040",null,"(90%, 100%]"]
[205,27,"4.3","0050",null,"(100%, 110%]"]
[206,28,"4.3","0060",null,"(110%, 130%]"]
[207,29,"4.3","0070",null,"> 130%"]
[208,30,"4.3","0080","Κατανομή τρέχοντος δείκτη κάλυψης τόκων (ICR-C)","≤ 1"]
[209,31,"4.3","0090",null,"(1, 3]"]
[210,32,"4.3","0100",null,"(3, 5]"]
[211,33,"4.3","0110",null,"(5, 10]"]
[212,34,"4.3","0120",null,"> 10"]
[213,35,"4.3","0130","Κατανομή τρέχοντος δείκτη εξυπηρέτησης χρέους προς εισόδημα (DSCR-C)","≤ 1 "]
[214,36,"4.3","0140",null,"(1, 5]"]
[215,37,"4.3","0150",null,"(5, 10]"]
[216,38,"4.3","0160",null,"(10, 20]"]
[217,39,"4.3","0170",null,"(20, 30]"]
[218,40,"4.3","0180",null,"> 30"]
[]
[]
[null,null,null,"ε/ο = εκ των οποίων "]

{"sheet":"08","index":7,"n_rows":72,"n_cols":11,"rows_kept":72,"cut":false,"hidden":false,"merged":[[51,5,52,5],[51,6,51,7],[31,5,32,5],[31,6,31,7],[30,11,31,11],[31,8,32,8],[31,9,31,10],[51,8,52,8],[51,9,51,10]]}
[]
[]
[]
[]
[]
[]
[]
[null,null,null,"ΔΙΕΥΘΥΝΣΗ ΧΡΗΜΑΤΟΠΙΣΤΩΤΙΚΗΣ ΣΤΑΘΕΡΟΤΗΤΑΣ"]
[]
[null,null,null,"ΠΑΡΑΡΤΗΜΑ IΙ\nΠίνακες επαγγελματικών ακινήτων"]
[]
[]
[]
[]
[]
[null,null,null,null,null,null,"Κωδικός Πιστωτικού Ιδρύματος :",{"$f":"OFFSET(CIAccount,0,1)","v":0}]
[null,null,null,null,null,null,"Επωνυμία:",{"$f":"OFFSET(CI,0,1)","v":0}]
[null,null,null,null,null,null,"Ημερομηνία Στοιχείων :",{"$f":"OFFSET(Valeur,0,1)","v":"00:00:00"}]
[null,null,null,null,null,null,"Αρμόδιος Υπάλληλος :"]
[null,null,null,null,null,null,"Αριθμός Τηλεφώνου :"]
[null,null,null,null,null,null,"Ημερομηνία Συμπλήρωσης :"]
[null,null,null,null,null,null,"Διορθωτική Αποστολή :",{"$f":"OFFSET(Revision,0,1)","v":0}]
[null,null,null,null,null,null,"Κωδικός Πίνακα :","FSD01.08"]
[null,null,null,null,null,null,"Υποσύστημα :",{"$f":"OFFSET([0]!Subsystem,0,1)","v":"FSD01"}]
[null,null,null,null,null,null,"Έκδοση Υποδείγματος :",{"$f":"_xlfn.SINGLE(OFFSET(TemplateVersion,0,1))","v":"01.01.00"}]
[null,null,null,null,null,null,"Τελευταία Αλλαγή Κατάστασης :","15 Δεκ 2020 11:39:15"]
[null,null,null,null,null,null,"Κατάσταση Eλέγχου :","OK"]
[]
[]
[]
[null,null,null,null,null,"Σταθμισμένος μέσος όρος δείκτη",null,null,"Αξία υπολογισμού δείκτη (Ποσό σύμβασης σε χιλ. ευρώ)"]
[null,null,null,null,"4.2 Ανάλυση δεικτών για ροές δανείων που αφορούν επαγγελματικά ακίνητα στη διάρκεια της περιόδου: με βάση τον σκοπό","Λόγω εξασφάλισης","Λόγω σκοπού",null,"Λόγω εξασφάλισης","Λόγω σκοπού"]
[null,null,null,null,null,null,null,"ε/ο λόγω εξασφάλισης",null,null,"ε/ο λόγω εξασφάλισης"]
[null,null,null,null,null,"010","020","030","040","050","060"]
[101,1,"4.2","0010","Δείκτης δανείου προς αξία κατά την έγκριση \n(LTV-O)"]
[102,2,"4.2","0020","- ε/ο δάνεια για την απόκτηση υφιστάμενων ή υπό κατασκευή ακινήτων που κατέχονται από τους ιδιοκτήτες τους για τη διενέργεια των επιχειρήσεων, την επίτευξη των σκοπών ή την άσκηση των δραστηριοτήτων τους"]
[103,3,"4.2","0030","- ε/ο δάνεια για την απόκτηση μισθωμένων ακινήτων"]
[104,4,"4.2","0040","- ε/ο δάνεια για την απόκτηση ακινήτων που παράγουν εισόδημα (εκτός από μισθωμένα ακίνητα)"]
[105,5,"4.2","0050","- ε/ο δάνεια για την απόκτηση επαγγελματικών ακινήτων υπό ανάπτυξη"]
[106,6,"4.2","0060","- ε/ο δάνεια για την απόκτηση ακινήτων που κατέχονται ως κοινωνικές κατοικίες"]
[107,7,"4.2","0070","Δείκτης κάλυψης τόκων κατά την έγκριση   \n(ICR-O)"]
[108,8,"4.2","0080","- ε/ο δάνεια για την απόκτηση μισθωμένων ακινήτων"]
[109,9,"4.2","0090","- ε/ο δάνεια για την απόκτηση ακινήτων που παράγουν εισόδημα (εκτός από μισθωμένα ακίνητα)"]
[110,10,"4.2","0100","- ε/ο δάνεια για την απόκτηση επαγγελματικών ακινήτων υπό ανάπτυξη"]
[111,11,"4.2","0110","- ε/ο δάνεια για την απόκτηση ακινήτων που κατέχονται ως κοινωνικές κατοικίες"]
[112,12,"4.2","0120","Δείκτης εξυπηρέτησης χρέους προς εισόδημα κατά την έγκριση (DSCR-O)"]
[113,13,"4.2","0130","- ε/ο δάνεια για την απόκτηση μισθωμένων ακινήτων"]
[114,14,"4.2","0140","- ε/ο δάνεια για την απόκτηση ακινήτων που παράγουν εισόδημα (εκτός από μισθωμένα ακίνητα)"]
[115,15,"4.2","0150","- ε/ο δάνεια για την απόκτηση επαγγελματικών ακινήτων υπό ανάπτυξη"]
[116,16,"4.2","0160","- ε/ο δάνεια για την απόκτηση ακινήτων που κατέχονται ως κοινωνικές κατοικίες"]
[null,null,null,null,null,"Σταθμισμένος μέσος όρος δείκτη",null,null,"Αξία υπολογισμού δείκτη (Ακαθάριστη λογιστική αξία σε χιλ. ευρώ)"]
[null,null,null,"4.4 Ανάλυση δεικτών υπολοίπων δανείων που αφορούν επαγγελματικά ακίνητα: με βάση τον σκοπό",null,"Λόγω εξασφάλισης","Λόγω σκοπού",null,"Λόγω εξασφάλισης","Λόγω σκοπού"]
[null,null,null,null,null,null,null,"ε/ο λόγω εξασφάλισης",null,null,"ε/ο λόγω εξασφάλισης"]
[null,null,null,null,null,"010","020","030","040","050","060"]
[201,21,"4.4","0010","Τρέχων δείκτης δανείου προς αξία (LTV-C)"]
[202,22,"4.4","0020","- ε/ο δάνεια για την απόκτηση υφιστάμενων ή υπό κατασκευή ακινήτων που κατέχονται από τους ιδιοκτήτες τους για τη διενέργεια των επιχειρήσεων, την επίτευξη των σκοπών ή την άσκηση των δραστηριοτήτων τους"]
[203,23,"4.4","0030","- ε/ο δάνεια για την απόκτηση μισθωμένων ακινήτων"]
[204,24,"4.4","0040","- ε/ο δάνεια για την απόκτηση ακινήτων που παράγουν εισόδημα (εκτός από μισθωμένα ακίνητα)"]
[205,25,"4.4","0050","- ε/ο δάνεια για την απόκτηση επαγγελματικών ακινήτων υπό ανάπτυξη"]
[206,26,"4.4","0060","- ε/ο δάνεια για την απόκτηση ακινήτων που κατέχονται ως κοινωνικές κατοικίες"]
[207,27,"4.4","0070","Τρέχων δείκτης κάλυψης τόκων (ICR-C)"]
[208,28,"4.4","0080","- ε/ο δάνεια για την απόκτηση μισθωμένων ακινήτων"]
[209,29,"4.4","0090","- ε/ο δάνεια για την απόκτηση ακινήτων που παράγουν εισόδημα (εκτός από μισθωμένα ακίνητα)"]
[210,30,"4.4","0100","- ε/ο δάνεια για την απόκτηση ακινήτων που κατέχονται ως κοινωνικές κατοικίες"]
[211,31,"4.4","0110","Τρέχων δείκτης εξυπηρέτησης χρέους προς εισόδημα (DSCR-C)"]
[212,32,"4.4","0120","- ε/ο δάνεια για την απόκτηση μισθωμένων ακινήτων"]
[213,33,"4.4","0130","- ε/ο δάνεια για την απόκτηση ακινήτων που παράγουν εισόδημα (εκτός από μισθωμένα ακίνητα)"]
[214,34,"4.4","0140","- ε/ο δάνεια για την απόκτηση ακινήτων που κατέχονται ως κοινωνικές κατοικίες"]
[]
[]
[]
[null,null,null,"ε/ο = εκ των οποίων "]

{"sheet":"Rules","index":8,"n_rows":76,"n_cols":13,"rows_kept":76,"cut":false,"hidden":true,"merged":[]}
["Όνομα Κανόνα","Ομάδα Φύλλων Εργασίας","Τύπος Κανόνα","Πληροφορίες Κανόνα Υπολογισμού","Ενότητα","Προϋποθέσεις Ελέγχου","Κανονική Έκφραση","Έκφραση","Γραμμές που Εφαρμόζεται","Στήλες που Εφαρμόζεται","Ακρίβεια Δεκαδικών","Μήνυμα","Πεδίο Μηνύματος"]
["00_01","^00$",null,null,"H","Dtm(Valeur%w00%r0%c1)",null,"Rxm2(Fmt(Valeur%w00%r0%c1, 'mmdd'),'^(0331|0630|0930|1231)$')",null,null,null,"Η ημερομηνία στοιχείων πρέπει να είναι τέλος τριμήνου. (%1)","Valeur%w"]
["00_02","^0[1234]$","","","H","Dtm(FillInDate%w%r%c) \nAnd \nDtm(Valeur%w00%r0%c1)","","FillInDate%w%r%c >= Valeur%w00%r0%c1","^\\d+$","","","Η ημερομηνία συμπλήρωσης των στοιχείων πρέπει να είναι μεταγενέστερη της ημερομηνίας των στοιχείων. (%1)","FillInDate%w"]
["01_01","^01$",null,null,"D","Nov(Col01_%w%r%c) And Nov(Col02_%w%r%c)",null,"(Vac(Col01_%w%r%c) And Vac(Col02_%w%r%c))\nOr\n((Not Vac(Col02_%w%r%c)) And (Not Vac(Col01_%w%r%c)))\n","^\\d+$",null,null,"Δεν μπορεί να είναι κενή μια στήλη από τις 010, 020 όταν έχει καταχωρηθεί τιμή σε μια εκ των δύο","Col01_%w"]
["02_01","^02$",null,null,"D","Nov(Col01_%w%r%c) And Nov(Col02_%w%r%c)",null,"(Vac(Col01_%w%r%c) And Vac(Col02_%w%r%c))\nOr\n((Not Vac(Col02_%w%r%c)) And (Not Vac(Col01_%w%r%c)))\n","^\\d+$",null,null,"Δεν μπορεί να είναι κενή μια στήλη από τις 010, 020 όταν σε μια από τις δύο έχει καταχωρηθεί τιμή","Col01_%w"]
["02_02","^02$",null,null,"D","Nov(Col03_%w%r%c) And Nov(Col04_%w%r%c)",null,"(Vac(Col01_%w%r%c) And Vac(Col02_%w%r%c))\nOr\n((Not Vac(Col02_%w%r%c)) And (Not Vac(Col01_%w%r%c)))\n","^\\d+$",null,null,"Δεν μπορεί να είναι κενή μια στήλη από τις 030, 040 όταν σε μια από τις δύο έχει καταχωρηθεί τιμή","Col03_%w"]
["02_03","^02$",null,null,"D","Nov(Col05_%w%r%c) And Nov(Col06_%w%r%c)",null,"(Vac(Col03_%w%r%c) And Vac(Col04_%w%r%c))\nOr\n((Not Vac(Col03_%w%r%c)) And (Not Vac(Col04_%w%r%c)))\n","^\\d+$",null,null,"Δεν μπορεί να είναι κενή μια στήλη από τις 050, 060 όταν σε μια από τις δύο έχει καταχωρηθεί τιμή","Col05_%w"]
[]
[]
["01_02","^01$",null,null,"D","Nov(%d%c) And Nov(%d2%c) And Rxm(YOrdinate%w%r%c)","^(0030|0040|0050|0060|0070|0080|0090|0100|0110|0120|0130|0140)$","V2Z(%d%c) <= V2Z(%d2%c)","^\\d+$","^(Col01|Col02)_%w$",null,"Για πεδία (γραμμές 0030-0140) που αφορούν ανάλυση «εκ των οποίων» (ε/ο) για αξίες ή αριθμούς συμβάσεων, το μέγεθος του πεδίου πρέπει να είναι πάντα μικρότερο ή ίσο με το μέγεθος του συνόλου (γραμμή 0020).","%d%c"]
["D01_03_01_1","^01$",null,null,"D","Nov(%d26%c) And Nov(%d27%c) And Nov(%d28%c) And Nov(%d29%c) And Nov(%d30%c) And Nov(%d31%c) And Nov(%d32%c) And Nov(%d33%c) And Nov(%d34%c) And Nov(%d2%c)",null,"rou((V2Z(%d26%c) + V2Z(%d27%c) + V2Z(%d28%c) + V2Z(%d29%c) + V2Z(%d30%c) + V2Z(%d31%c) + V2Z(%d32%c) + V2Z(%d33%c) + V2Z(%d34%c)), 1)  = rou(V2Z(%d2%c), 1) ","^34$","^(Col01)_%w$",null,"Δεν ισχύει ότι το άθροισμα των γραμμών 0260-0340 ισούται με το σύνολο της γραμμής 0020 για τη στήλη \"Αξία σε χιλ. Ευρώ\".","%d%c"]
["D01_03_01_2","^01$",null,null,"D","Nov(%d26%c) And Nov(%d27%c) And Nov(%d28%c) And Nov(%d29%c) And Nov(%d30%c) And Nov(%d31%c) And Nov(%d32%c) And Nov(%d33%c) And Nov(%d34%c) And Nov(%d2%c)",null,"rou((V2Z(%d26%c) + V2Z(%d27%c) + V2Z(%d28%c) + V2Z(%d29%c) + V2Z(%d30%c) + V2Z(%d31%c) + V2Z(%d32%c) + V2Z(%d33%c) + V2Z(%d34%c)), 1)  = rou(V2Z(%d2%c), 1) ","^34$","^(Col02)_%w$",null,"Δεν ισχύει ότι το άθροισμα των γραμμών 0260-0340 ισούται με το σύνολο της γραμμής 0020 για τη στήλη \"# αριθμός συμβάσεων\".","%d%c"]
["D01_03_02_1","^01$",null,null,"D","Nov(%d50%c) And Nov(%d51%c) And Nov(%d52%c) And Nov(%d53%c) And Nov(%d54%c) And Nov(%d55%c) And Nov(%d56%c) And Nov(%d57%c) And  Nov(%d2%c)",null,"rou(V2Z(%d50%c) + V2Z(%d51%c) + V2Z(%d52%c) + V2Z(%d53%c) + V2Z(%d54%c) + V2Z(%d55%c) + V2Z(%d56%c) + V2Z(%d57%c), 1) = rou(V2Z(%d2%c), 1)","^57$","^(Col01)_%w$",null,"Δεν ισχύει ότι το άθροισμα των γραμμών 0500-0570 ισούται με το σύνολο της γραμμής 0020 για τη στήλη \"Αξία σε χιλ. Ευρώ\".","%d%c"]
["D01_03_02_2","^01$",null,null,"D","Nov(%d50%c) And Nov(%d51%c) And Nov(%d52%c) And Nov(%d53%c) And Nov(%d54%c) And Nov(%d55%c) And Nov(%d56%c) And Nov(%d57%c) And  Nov(%d2%c)",null,"rou(V2Z(%d50%c) + V2Z(%d51%c) + V2Z(%d52%c) + V2Z(%d53%c) + V2Z(%d54%c) + V2Z(%d55%c) + V2Z(%d56%c) + V2Z(%d57%c), 1) = rou(V2Z(%d2%c), 1)","^57$","^(Col02)_%w$",null,"Δεν ισχύει ότι το άθροισμα των γραμμών 0500-0570 ισούται με το σύνολο της γραμμής 0020 για τη στήλη \"# αριθμός συμβάσεων\".","%d%c"]
["D01_03_03_1","^01$",null,null,"D","Nov(%d61%c) And Nov(%d62%c) And Nov(%d63%c) And Nov(%d64%c) And Nov(%d65%c) And Nov(%d66%c) And Nov(%d67%c) And Nov(%d68%c) And Nov(%d69%c) And Nov(%d2%c)",null,"rou(V2Z(%d61%c) + V2Z(%d62%c) + V2Z(%d63%c) + V2Z(%d64%c) + V2Z(%d65%c) + V2Z(%d66%c) + V2Z(%d67%c) + V2Z(%d68%c) + V2Z(%d69%c), 1) = rou(V2Z(%d2%c), 1)","^69$","^(Col01)_%w$",null,"Δεν ισχύει ότι το άθροισμα των γραμμών 0610-0690 ισούται με το σύνολο της γραμμής 0020 για τη στήλη \"Αξία σε χιλ. Ευρώ\".","%d%c"]
["D01_03_03_2","^01$",null,null,"D","Nov(%d61%c) And Nov(%d62%c) And Nov(%d63%c) And Nov(%d64%c) And Nov(%d65%c) And Nov(%d66%c) And Nov(%d67%c) And Nov(%d68%c) And Nov(%d69%c) And Nov(%d2%c)",null,"rou(V2Z(%d61%c) + V2Z(%d62%c) + V2Z(%d63%c) + V2Z(%d64%c) + V2Z(%d65%c) + V2Z(%d66%c) + V2Z(%d67%c) + V2Z(%d68%c) + V2Z(%d69%c), 1) = rou(V2Z(%d2%c), 1)","^69$","^(Col02)_%w$",null,"Δεν ισχύει ότι το άθροισμα των γραμμών 0610-0690 ισούται με το σύνολο της γραμμής 0020 για τη στήλη \"# αριθμός συμβάσεων\".","%d%c"]
["D01_03_04_1","^01$",null,null,"D","Nov(%d73%c) And Nov(%d74%c) And Nov(%d75%c) And Nov(%d76%c) And Nov(%d77%c) And Nov(%d78%c) And Nov(%d79%c) And Nov(%d80%c) And Nov(%d81%c) And Nov(%d82%c) And Nov(%d83%c) And Nov(%d2%c)",null,"rou(V2Z(%d73%c) + V2Z(%d74%c) + V2Z(%d75%c) + V2Z(%d76%c) + V2Z(%d77%c) + V2Z(%d78%c) + V2Z(%d79%c) + V2Z(%d80%c) + V2Z(%d81%c) + V2Z(%d82%c) + V2Z(%d83%c), 1) = rou(V2Z(%d2%c), 1)","^83$","^(Col01)_%w$",null,"Δεν ισχύει ότι το άθροισμα των γραμμών 0730-0830 ισούται με το σύνολο της γραμμής 0020 για τη στήλη \"Αξία σε χιλ. Ευρώ\".","%d%c"]
["D01_03_04_2","^01$",null,null,"D","Nov(%d73%c) And Nov(%d74%c) And Nov(%d75%c) And Nov(%d76%c) And Nov(%d77%c) And Nov(%d78%c) And Nov(%d79%c) And Nov(%d80%c) And Nov(%d81%c) And Nov(%d82%c) And Nov(%d83%c) And Nov(%d2%c)",null,"rou(V2Z(%d73%c) + V2Z(%d74%c) + V2Z(%d75%c) + V2Z(%d76%c) + V2Z(%d77%c) + V2Z(%d78%c) + V2Z(%d79%c) + V2Z(%d80%c) + V2Z(%d81%c) + V2Z(%d82%c) + V2Z(%d83%c), 1) = rou(V2Z(%d2%c), 1)","^83$","^(Col02)_%w$",null,"Δεν ισχύει ότι το άθροισμα των γραμμών 0730-0830 ισούται με το σύνολο της γραμμής 0020 για τη στήλη \"# αριθμός συμβάσεων\".","%d%c"]
["D01_03_05_1","^01$",null,null,"D","Nov(%d87%c) And Nov(%d88%c) And Nov(%d89%c) And Nov(%d90%c) And Nov(%d91%c) And Nov(%d92%c) And Nov(%d93%c) And Nov(%d94%c) And Nov(%d2%c)",null,"rou(V2Z(%d87%c) + V2Z(%d88%c) + V2Z(%d89%c) + V2Z(%d90%c) + V2Z(%d91%c) + V2Z(%d92%c) + V2Z(%d93%c) + V2Z(%d94%c), 1) = rou(V2Z(%d2%c), 1)","^94$","^(Col01)_%w$",null,"Δεν ισχύει ότι το άθροισμα των γραμμών 0870-0940 ισούται με το σύνολο της γραμμής 0020 για τη στήλη \"Αξία σε χιλ. Ευρώ\".","%d%c"]
["D01_03_05_2","^01$",null,null,"D","Nov(%d87%c) And Nov(%d88%c) And Nov(%d89%c) And Nov(%d90%c) And Nov(%d91%c) And Nov(%d92%c) And Nov(%d93%c) And Nov(%d94%c) And Nov(%d2%c)",null,"rou(V2Z(%d87%c) + V2Z(%d88%c) + V2Z(%d89%c) + V2Z(%d90%c) + V2Z(%d91%c) + V2Z(%d92%c) + V2Z(%d93%c) + V2Z(%d94%c), 1) = rou(V2Z(%d2%c), 1)","^94$","^(Col02)_%w$",null,"Δεν ισχύει ότι το άθροισμα των γραμμών 0870-0940 ισούται με το σύνολο της γραμμής 0020 για τη στήλη \"# αριθμός συμβάσεων\".","%d%c"]
["D01_03_06_1","^01$",null,null,"D","Nov(%d98%c) And Nov(%d99%c) And Nov(%d100%c) And Nov(%d101%c) And Nov(%d102%c) And Nov(%d103%c) And Nov(%d104%c) And Nov(%d105%c) And Nov(%d106%c) And Nov(%d2%c)",null,"rou(V2Z(%d98%c) + V2Z(%d99%c) + V2Z(%d100%c) + V2Z(%d101%c) + V2Z(%d102%c) + V2Z(%d103%c) + V2Z(%d104%c) + V2Z(%d105%c) + V2Z(%d106%c), 1) = rou(V2Z(%d2%c), 1)","^106$","^(Col01)_%w$",null,"Δεν ισχύει ότι το άθροισμα των γραμμών 0980-1060 ισούται με το σύνολο της γραμμής 0020 για τη στήλη \"Αξία σε χιλ. Ευρώ\".","%d%c"]
["D01_03_06_2","^01$",null,null,"D","Nov(%d98%c) And Nov(%d99%c) And Nov(%d100%c) And Nov(%d101%c) And Nov(%d102%c) And Nov(%d103%c) And Nov(%d104%c) And Nov(%d105%c) And Nov(%d106%c) And Nov(%d2%c)",null,"rou(V2Z(%d98%c) + V2Z(%d99%c) + V2Z(%d100%c) + V2Z(%d101%c) + V2Z(%d102%c) + V2Z(%d103%c) + V2Z(%d104%c) + V2Z(%d105%c) + V2Z(%d106%c), 1) = rou(V2Z(%d2%c), 1)","^106$","^(Col02)_%w$",null,"Δεν ισχύει ότι το άθροισμα των γραμμών 0980-1060 ισούται με το σύνολο της γραμμής 0020 για τη στήλη \"# αριθμός συμβάσεων\".","%d%c"]
["D01_04_01","^01$",null,null,"D","Nov(%d112%c) And Nov(%d113%c) And Nov(%d114%c) And Nov(%d115%c) And Nov(%d116%c) And Nov(%d117%c) And Nov(%d118%c) And Nov(%d119%c) And Nov(%d120%c) And Nov(%d108%c)",null,"rou(V2Z(%d112%c) + V2Z(%d113%c) + V2Z(%d114%c) + V2Z(%d115%c) + V2Z(%d116%c) + V2Z(%d117%c) + V2Z(%d118%c) + V2Z(%d119%c) + V2Z(%d120%c), 1) = rou(V2Z(%d108%c), 1)","^120$","^(Col01)_%w$",null,"Δεν ισχύει ότι το άθροισμα των γραμμών 1120-1200 ισούται με το σύνολο της γραμμής 1080 για τη στήλη \"Αξία σε χιλ. Ευρώ\".","%d108%c"]
["D01_04_02","^01$",null,null,"D","Nov(%d112%c) And Nov(%d113%c) And Nov(%d114%c) And Nov(%d115%c) And Nov(%d116%c) And Nov(%d117%c) And Nov(%d118%c) And Nov(%d119%c) And Nov(%d120%c) And Nov(%d108%c)",null,"rou(V2Z(%d112%c) + V2Z(%d113%c) + V2Z(%d114%c) + V2Z(%d115%c) + V2Z(%d116%c) + V2Z(%d117%c) + V2Z(%d118%c) + V2Z(%d119%c) + V2Z(%d120%c), 1) = rou(V2Z(%d108%c), 1)","^120$","^(Col02)_%w$",null,"Δεν ισχύει ότι το άθροισμα των γραμμών 1120-1200 ισούται με το σύνολο της γραμμής 1080 για τη στήλη \"# αριθμός συμβάσεων\".","%d108%c"]
["02_01","^02$",null,null,"D","Nov(Col01_%w%r%c) And Nov(Col02_%w%r%c)",null,"(Vac(Col01_%w%r%c) And Vac(Col02_%w%r%c))\nOr\n((Not Vac(Col02_%w%r%c)) And (Not Vac(Col01_%w%r%c)))\n","^\\d+$",null,null,"Δεν μπορεί να είναι κενή μια στήλη από τις 010, 020 όταν σε μια από τις δύο έχει καταχωρηθεί τιμή","Col01_%w"]
["02_02","^02$",null,null,"D","Nov(Col03_%w%r%c) And Nov(Col04_%w%r%c)",null,"(Vac(Col01_%w%r%c) And Vac(Col02_%w%r%c))\nOr\n((Not Vac(Col02_%w%r%c)) And (Not Vac(Col01_%w%r%c)))\n","^\\d+$",null,null,"Δεν μπορεί να είναι κενή μια στήλη από τις 030, 040 όταν σε μια από τις δύο έχει καταχωρηθεί τιμή","Col03_%w"]
["02_03","^02$",null,null,"D","Nov(Col05_%w%r%c) And Nov(Col06_%w%r%c)",null,"(Vac(Col03_%w%r%c) And Vac(Col04_%w%r%c))\nOr\n((Not Vac(Col03_%w%r%c)) And (Not Vac(Col04_%w%r%c)))\n","^\\d+$",null,null,"Δεν μπορεί να είναι κενή μια στήλη από τις 050, 060 όταν σε μια από τις δύο έχει καταχωρηθεί τιμή","Col05_%w"]
["D03_01","^03$",null,null,"D","Dtm(Valeur%w00%r0%c1) And YOrdinate%w%r%c > '0480' And Rxm2(Fmt(Valeur%w00%r0%c1, 'mmdd'),'^(0331|0630|0930|1231)$')",null,"(Rxm2(Fmt(Valeur%w00%r0%c1, 'mmdd'),'^(0331|0630|0930)$') And Vac(%d%c)) Or Rxm2(Fmt(Valeur%w00%r0%c1, 'mmdd'),'^(1231)$')","^\\d+$","^(Col01|Col02|Col03|Col04)_%w$",null,"Δεν συμπληρώνονται ετήσια στοιχεία","%d%c"]
["D03_02","^03$",null,null,"D","Num(%d%c) And Rxm(YOrdinate%w%r%c)","^(0510|0520|0530|0540|0550|0560|0570|0580|0650|0660|0670|0680|0690|0700|0710|0720|0730|0740|0750|0760|0770|0780|0790|0800|0810|0820|0830|0840|0850|0860|0870|0880|0890|0900|0910|0920|0930|0940|0950|0960|0970|0980|0990)$","%d%c >= 0","^\\d+$","^Col(01|02|03|04)_%w$",null,"Το ποσό πρέπει να είναι >= 0","%d%c"]
["D03_03","^03$",null,null,"D","Num(%d%c) And Rxm(YOrdinate%w%r%c)"," ^(0010|0020|0030|0040|0050|0060|0070|0080|0090|0100|0110|0120|0130|0140|0150|0160|0170|0180|0190|0200|0210|0220|0230|0240|0250|0260|0270|0280|0290|0300|0310|0320|0330|0340|0350|0360|0370|0380|0390|0400|0410|0420|0430|0440|0450|0460|0470||0590|0600|0610|0620|0630|0640)$","%d%c <= 0 OR %d%c >= 0","^\\d+$","^Col(01|02|03|04)_%w$",null,"Το ποσό πρέπει να είναι >= ή <= 0","%d%c"]
["D04_01","^04$",null,null,"D","Dtm(Valeur%w00%r0%c1) And YOrdinate%w%r%c > '0190' And Rxm2(Fmt(Valeur%w00%r0%c1, 'mmdd'),'^(0331|0630|0930|1231)$')",null,"(Rxm2(Fmt(Valeur%w00%r0%c1, 'mmdd'),'^(0331|0630|0930)$') And Vac(%d%c)) Or Rxm2(Fmt(Valeur%w00%r0%c1, 'mmdd'),'^(1231)$')","^\\d+$","^(Col01)_%w$",null,"Δεν συμπληρώνονται ετήσια στοιχεία","%d%c"]
[]
[]
[]
[]
[]
[]
[]
[]
[]
["01_03","^01$",null,null,"D","Nov(Col01_%w%d26%c) And Nov(Col01_%w%d27%c) And Nov(Col01_%w%d28%c) And Nov(Col01_%w%d29%c) And Nov(Col01_%w%d30%c) And Nov(Col01_%w%d31%c) And Nov(Col01_%w%d32%c) And Nov(Col01_%w%d33%c) And Nov(Col01_%w%d34%c) And Nov(Col01_%w%d50%c) And Nov(Col01_%w%d51%c) And Nov(Col01_%w%d52%c) And Nov(Col01_%w%d53%c) And Nov(Col01_%w%d54%c) And Nov(Col01_%w%d55%c) And Nov(Col01_%w%d56%c) And Nov(Col01_%w%d57%c) And Nov(Col01_%w%d61%c) And Nov(Col01_%w%d62%c) And Nov(Col01_%w%d63%c) And Nov(Col01_%w%d64%c) And Nov(Col01_%w%d65%c) And Nov(Col01_%w%d66%c) And Nov(Col01_%w%d67%c) And Nov(Col01_%w%d68%c) And Nov(Col01_%w%d69%c) And Nov(Col01_%w%d73%c) And Nov(Col01_%w%d74%c) And Nov(Col01_%w%d75%c) And Nov(Col01_%w%d76%c) And Nov(Col01_%w%d77%c) And Nov(Col01_%w%d78%c) And Nov(Col01_%w%d79%c) And Nov(Col01_%w%d80%c) And Nov(Col01_%w%d81%c) And Nov(Col01_%w%d82%c) And Nov(Col01_%w%d83%c) And Nov(Col01_%w%d87%c) And Nov(Col01_%w%d88%c) And Nov(Col01_%w%d89%c) And Nov(Col01_%w%d90%c) And Nov(Col01_%w%d91%c) And Nov(Col01_%w%d92%c) And Nov(Col01_%w%d93%c) And Nov(Col01_%w%d94%c) And Nov(Col01_%w%d98%c) And Nov(Col01_%w%d99%c) And Nov(Col01_%w%d100%c) And Nov(Col01_%w%d101%c) And Nov(Col01_%w%d102%c) And Nov(Col01_%w%d103%c) And Nov(Col01_%w%d104%c) And Nov(Col01_%w%d105%c) And Nov(Col01_%w%d106%c) And Nov(Col01_%w%d2%c)",null,"V2Z(Col01_%w%d26%c) + V2Z(Col01_%w%d27%c) + V2Z(Col01_%w%d28%c) + V2Z(Col01_%w%d29%c) + V2Z(Col01_%w%d30%c) + V2Z(Col01_%w%d31%c) + V2Z(Col01_%w%d32%c) + V2Z(Col01_%w%d33%c) + V2Z(Col01_%w%d34%c) + V2Z(Col01_%w%d50%c) + V2Z(Col01_%w%d51%c) + V2Z(Col01_%w%d52%c) + V2Z(Col01_%w%d53%c) + V2Z(Col01_%w%d54%c) + V2Z(Col01_%w%d55%c) + V2Z(Col01_%w%d56%c) + V2Z(Col01_%w%d57%c) + V2Z(Col01_%w%d61%c) + V2Z(Col01_%w%d62%c) + V2Z(Col01_%w%d63%c) + V2Z(Col01_%w%d64%c) + V2Z(Col01_%w%d65%c) + V2Z(Col01_%w%d66%c) + V2Z(Col01_%w%d67%c) + V2Z(Col01_%w%d68%c) + V2Z(Col01_%w%d69%c) + V2Z(Col01_%w%d73%c) + V2Z(Col01_%w%d74%c) + V2Z(Col01_%w%d75%c) + V2Z(Col01_%w%d76%c) + V2Z(Col01_%w%d77%c) + V2Z(Col01_%w%d78%c) + V2Z(Col01_%w%d79%c) + V2Z(Col01_%w%d80%c) + V2Z(Col01_%w%d81%c) + V2Z(Col01_%w%d82%c) + V2Z(Col01_%w%d83%c) + V2Z(Col01_%w%d87%c) + V2Z(Col01_%w%d88%c) + V2Z(Col01_%w%d89%c) + V2Z(Col01_%w%d90%c) + V2Z(Col01_%w%d91%c) + V2Z(Col01_%w%d92%c) + V2Z(Col01_%w%d93%c) + V2Z(Col01_%w%d94%c) + V2Z(Col01_%w%d98%c) + V2Z(Col01_%w%d99%c) + V2Z(Col01_%w%d100%c) + V2Z(Col01_%w%d101%c) + V2Z(Col01_%w%d102%c) + V2Z(Col01_%w%d103%c) + V2Z(Col01_%w%d104%c) + V2Z(Col01_%w%d105%c) + V2Z(Col01_%w%d106%c) = V2Z(Col01_%w%d2%c)","^106$",null,null,"Δεν ισχύει ότι το άθροισμα των γραμμών 0260-0340, 0500-0570, 0610-0690, 0730-0830, 0870-0940, 0980-1060 ισούται με το σύνολο της γραμμής 0020.","Col01_%w%d2%c"]
["01_04","^01$",null,null,"D","Nov(Col01_%w%d112%c) And Nov(Col01_%w%d113%c) And Nov(Col01_%w%d114%c) And Nov(Col01_%w%d115%c) And Nov(Col01_%w%d116%c) And Nov(Col01_%w%d117%c) And Nov(Col01_%w%d118%c) And Nov(Col01_%w%d119%c) And Nov(Col01_%w%d120%c) And Nov(Col01_%w%d108%c)",null,"V2Z(Col01_%w%d112%c) + V2Z(Col01_%w%d113%c) + V2Z(Col01_%w%d114%c) + V2Z(Col01_%w%d115%c) + V2Z(Col01_%w%d116%c) + V2Z(Col01_%w%d117%c) + V2Z(Col01_%w%d118%c) + V2Z(Col01_%w%d119%c) + V2Z(Col01_%w%d120%c) = V2Z(Col01_%w%d108%c)","^120$",null,null,"Δεν ισχύει ότι το άθροισμα των γραμμών 1120-1200 ισούται με το σύνολο της γραμμής 1080.","Col01_%w%d108%c"]
["03_02","^03$",null,null,"D","Nov(Col01_%w%r%c) And Nov(Col02_%w%r%c) And Nov(Col03_%w%r%c) And Nov(Col04_%w%r%c)",null,"V2Z(Col01_%w%r%c) + V2Z(Col02_%w%r%c) + V2Z(Col03_%w%r%c) = V2Z(Col04_%w%r%c)","^\\d+$",null,null,"Δεν ισχύει η σχέση sum{c010, c020, C030} = {c040} για το φύλλο 03.","Col04_%w"]
[]
["02_00","^02$","1","Col01_%w%r%c-1","D","Not (Vac(Col01_%w%r%c) And Vac(Col02_%w%r%c) And Vac(Col04_%w%r%c))","","Col01_%w%r%c & Col02_%w%r%c & Col04_%w%r%c","","","","Λάθος στον υπολογισμό Col01 &  Col02 & Col04","Col01_%w"]
["02_01","^02$","","","D","Not Vac(Col01_%w%r%c) And Not Vac(Col02_%w%r%c) And Not Vac(Col04_%w%r%c)","","CountIf(Rng('Col01_%w%r1%c-1', 'Col01_%w%r%c-1'), Col01_%w%r%c-1) = 1","","","","Ο συνδυασμός των κωδικών των στηλών C0030 & C0045 & C0040 πρέπει να εμφανίζεται μια μόνο φορά στη λίστα.","Col01_%w"]
["02_02","^02$",null,null,"D","Not Vac(Col04_%w%r%c) And Col04_%w%r%c='MutFund' And Num(RecordCount%w04%r0%c1) And Num(Col05_%w%r%c)",null,"(InLst(Col02_%w%r%c, DLc030CodeList_04) And (Col05_%w%r%c > 0)) Or (Not InLst(Col02_%w%r%c, DLc030CodeList_04) And (Col05_%w%r%c = 0))",null,null,null,"Όλες οι εγγραφές που στο πεδίο C0040 έχουν τιμή MutFund πρέπει να αναλύονται στο φύλλο '04' αν έχουν στο πεδίο C0060 μη μηδενική τιμή.","Col02_%w"]
["02_03","^02$",null,null,"D","Not Vac(Col04_%w%r%c) And Col04_%w%r%c='IntFund' And Num(RecordCount%w03%r0%c1) And Num(Col05_%w%r%c)",null,"(InLst(Col02_%w%r%c, DLc015CodeList_03) And (Col05_%w%r%c > 0)) Or (Not InLst(Col02_%w%r%c, DLc015CodeList_03) And (Col05_%w%r%c = 0))",null,null,null,"Όλες οι εγγραφές που στο πεδίο C0040 έχουν τιμή IntFund πρέπει να αναλύονται στο φύλλο '03' αν έχουν στο πεδίο C0060 μη μηδενική τιμή.","Col02_%w"]
["02_04","^02$",null,null,"D","Not Vac(Col01_%w%r%c) And Num(Col05_%w%r%c)",null,"Col05_%w%r%c <> 0",null,null,null,"Δεν επιτρέπεται η καταχώρηση μηδενικών ποσών στη στήλη C0060","Col05_%w"]
["03_00","^03$","1","Col01_%w%r%c-1","D","Not (Vac(Col01_%w%r%c) And Vac(Col02_%w%r%c))","","Col02_%w%r%c & Col01_%w%r%c","","","","Λάθος στον υπολογισμό Col02 &  Col01","Col01_%w"]
["03_01","^03$","","","D","Not Vac(Col01_%w%r%c) And Not Vac(Col02_%w%r%c)","","CountIf(Rng('Col01_%w%r1%c-1', 'Col01_%w%r%c-1'), Col01_%w%r%c-1) = 1","","","","Ο συνδυασμός των κωδικών των στηλών C0030 & C0015 πρέπει να εμφανίζεται μια μόνο φορά στη λίστα.","Col01_%w"]
["04_00","^04$",null,null,"D","Not Vac(Col01_%w%r%c)",null,"CountIf(Rng('Col01_%w%r1%c0', 'Col01_%w%r%c'), Col01_%w%r%c) = 1",null,null,null,"Ο κωδικός πρέπει να εμφανίζεται μια μόνο φορά στη λίστα.","Col01_%w"]
["05_00","^05$",null,null,"D","Not Vac(Col01_%w%r%c)",null,"CountIf(Rng('Col01_%w%r1%c0', 'Col01_%w%r%c'), Col01_%w%r%c) = 1",null,null,null,"Ο κωδικός πρέπει να εμφανίζεται μια μόνο φορά στη λίστα.","Col01_%w"]
["05_01","^05$",null,null,"D","Not Vac(Col03_%w%r%c) And Col03_%w%r%c='Collinvund' And (Num(RecordCount%w03%r0%c1) Or Num(RecordCount%w04%r0%c1))",null,"(InLst(Col01_%w%r%c, DLc030CodeList_04) And Num(RecordCount%w04%r0%c1)) Or (InLst(Col01_%w%r%c, DLc030CodeList_03) And Num(RecordCount%w03%r0%c1))",null,null,null,"Όλες οι εγγραφές που στο πεδίο C0050 έχουν τιμή Collinvund πρέπει να αναλύονται είτε στο φύλλο '04' είτε στο φύλλο '03'.","Col01_%w"]
["05_02","^05$",null,null,"D","Not Vac(Col03_%w%r%c) And Col03_%w%r%c<>'Collinvund' And Num(RecordCount%w03%r0%c1)",null,"InLst(Col01_%w%r%c, DLc030CodeList_03)",null,null,null,"Όλες οι εγγραφές που στο πεδίο C0050 δεν έχουν τιμή Collinvund πρέπει να αναλύονται στο φύλλο '03'.","Col01_%w"]
["01_14","^01$",null,null,"D","Not Vac(Col01_%w%r%c) And Nov(%c%)",null,"(Rxm2('^(2|3|5|6)$',Col01_%w%r%c) And (Not Vac(%c%)))\nOr\n(Not (Rxm2('^(2|3|5|6)$',Col01_%w%r%c)) And Vac(%c%))","^\\d+$","^Col(25)_%w$",null,"Η στήλη δεν είναι κενή μόνο όταν η στήλη 010 έχει τιμή {2,3,5,6}","%c%"]
["01_15","^01$",null,null,"D","Not Vac(Col01_%w%r%c) And Nov(%c%)",null,"(Rxm2('^(7)$',Col01_%w%r%c) And (Not Vac(%c%)))\nOr\n(Not (Rxm2('^(7)$',Col01_%w%r%c)) And Vac(%c%))\n","^\\d+$","^Col(27|28|29|30|31|32)_%w$",null,"Η στήλη δεν είναι κενή μόνο όταν η στήλη 010 έχει τιμή 7","%c%"]
["01_16","^01$",null,null,"D","Not Vac(Col01_%w%r%c)",null,"(Rxm2('^(7|16)$',Col01_%w%r%c) And Vac(%c%))\nOr\n(Not (Rxm2('^(7|16)$',Col01_%w%r%c) Or Vac(%c%)))","^\\d+$","^Col(10|11)_%w$",null,"Οι στήλες 100 και 110 είναι κενές αν και μόνο αν η στήλη 010 έχει τιμή 7 ή 16","%c%"]
["01_17","^01$",null,null,"D","Rxm2('^(1|4|7|8|9|10|11|12|13|14|15|17|18)$', Col01_%w%r%c) And Not Vac(Col19_%w%r%c)",null,"CountIf(Flt01_01, Col19_%w%r%c & '#') = 1","^\\d+$",null,null,"Για τις εγγραφές που η στήλη 010 έχει κάποια από τις τιμές 1, 4, 7, 8, 9, 10, 11, 12, 13, 14, 15, 17, 18 η τιμή της στήλης 190 δεν πρέπει να εμφανίζεται πάνω από μία φορά","Col19_%w"]
["01_18","^01$",null,null,"D","Rxm2('^(16)$', Col01_%w%r%c) And Not Vac(Col19_%w%r%c)",null,"CountIf(Flt02_01, Col19_%w%r%c & '#') > 1","^\\d+$",null,null,"Για τις εγγραφές που η στήλη 010 έχει τιμή 16 πρέπει η τιμή της στήλης 190 να εμφανίζεται τουλάχιστον 2 φορές","Col19_%w"]
["01_01","^01$",null,null,"D","Nov(%d3%c) And Nov(%d10%c) And Nov(%d19%c) And Nov(%d24%c)",null,"V2Z(%d3%c) <= V2Z(%d10%c) + V2Z(%d19%c) + V2Z(%d24%c)","^24$","^Col(02|03)_%w$",null,"Δεν ισχύει η σχέση: PI003.01, C0020-0030, {R0070} ≤ {R0160} + {R0250} + {R0340}. Το πλήθος των συμβολαίων ή το πλήθος των ασφαλισμένων με εφάπαξ καταβολή ασφαλίστρων των Ασφαλίσεων κλάδων Ζωής πρέπει να είναι μικρότερο ή ίσο του αθροίσματος του πλήθους συμβολαίων ή του πλήθους ασφαλισμένων αντίστοιχα των επιμέρους κλάδων ασφάλισης","%d%c"]
["01_02","^01$",null,null,"D","Nov(Col02_%w%r%c) And Nov(Col03_%w%r%c)",null,"V2Z(Col02_%w%r%c) <= V2Z(Col03_%w%r%c)","^\\d+$",null,null,"Δεν ισχύει η σχέση: PI003.01, C0020 ≤ C0030. Το πλήθος των συμβολαίων αναμένεται να είναι μικρότερο ή ίσο του πλήθους των ασφαλισμένων","Col02_%w%r%c"]
["01_03","^01$",null,null,"D","Nov(Col01_%w%r%c) And Nov(Col02_%w%r%c) And Nov(Col03_%w%r%c) And (V2Z(Col01_%w%r%c) <> 0 Or V2Z(Col02_%w%r%c) <> 0 Or V2Z(Col03_%w%r%c) <> 0)",null,"V2Z(Col01_%w%r%c) <> 0 And V2Z(Col02_%w%r%c) <> 0 And V2Z(Col03_%w%r%c) <> 0","^\\d+$",null,null,"Δεν ισχύει η σχέση: Σε περίπτωση που συμπληρωθεί οποιοδήποτε κελί μιας δεδομένης γραμμής με ποσό διαφορετικό του μηδενός (≠0), απαιτείται η συμπλήρωση του συνόλου των πεδίων της γραμμής με ποσά διαφορετικά του μηδενός (≠0)","Col01_%w%r%c"]
["01_00","^01$",null,null,"D","Num(%d%c) And Rxm2('^(R0010|R0020|R0030|R0050|R0060|R0070)$', YOrdinate%w%r%c)",null,"Rou(%d%c, 2) = %d%c","^\\d+$","^Col(01)_%w$",4,"Δεν επιτρέπονται πάνω από 2 δεκαδικά ψηφία.","%d%c"]
["00_02","^0[2-4]$",null,null,"H","Not Vac(ValidationStatus%w01%r0%c1)",null,"ValidationStatus%w01%r0%c1 = 'OK'",null,null,null,"Τα δεδομένα του φύλλου '01' πρέπει να ελεγχθούν.","ValidationStatus%w01%r0%c1"]
["00_03","^0[1-4]$",1,"Col00_%w%r%c","D",null,null,"Rctr(Col00_%w%r%c)",null,null,null,"Αποτυχία υπολογισμού","Col00_%w%r%c"]
["00_04","^0[1-2]$",null,null,"D","Not Vac(Col01_%w%r%c)",null,"CountIf(Rng('Col01_%w%r1%c0', 'Col01_%w%r%c'), Col01_%w%r%c) = 1",null,null,null,"Ο κωδικός πρέπει να εμφανίζεται μια μόνο φορά στη λίστα.","Col01_%w"]
[]
["00_01N","^00$","","","H","Dtm(Valeur%w00%r0%c1)",null,"Rxm2('^(0331|0630|0930|1231)$', Fmt(Valeur%w00%r0%c1,'mmdd'))","","","","Η ημερομηνία στοιχείων πρέπει να είναι τέλος τριμήνου. (%1)","Valeur%w"]
["00_02","^00$",null,null,"H","Dtm(Valeur%w00%r0%c1) And  SubmissionType%w00%r0%c1 = 11","^(1231)$","Rxm(Fmt(Valeur%w00%r0%c1, 'mmdd'))",null,null,null,"Η ημερομηνία στοιχείων πρέπει να είναι τέλος έτους. (%1)","Valeur%w"]
["01_09","^01$",null,null,"D","Not Vac(%d%c)",null,"Rxm2('^[A-Z]{6}[A-Z0-9]{5}$',%d%c)","^\\d+$","^Col(02|12)_%w$",null,"Το BIC δεν έχει αποδεκτή μορφή. (%1)","%d%c"]
[]
[]
["05_02","^05$",null,null,"D","Num(%c%)",null,"%c% >= 0","^\\d+$","^(Col02|Col03|Col04|Col05|Col06|Col07|Col08|Col09|Col10|Col11|Col12|Col13|Col14|Col15|Col16)_%w$",null,"(EBA: v4326_s) Δεν ισχύει η σχέση {C 104.00} >= 0","%c%"]
["03_02","^03$",null,null,"D","Num(%d%c) And Rxm(YOrdinate%w%r%c)","^(0010|0020|0030|0040|0050|0060|0070|0080|0090|0100|0110|0120|0130|0140|0150|0160|0170|0180|0190|0200|0210|0220|0230|0240|0250|0260|0270|0280|0290|0300|0310|0320|0330|0340|0350|0360|0510|0520|0530|0540|0550|0560|0570|0580|0590|0600|0610|0620|0630|0640|0650|0660|0670|0680|0690|0700|0710|0720|0730|0740|0750|0760|0770|0780|0790|0800|0810|0820|0830|0840|0850|0860|0870|0880|0890|0900|0910|0920|0930|0940|0950|0960|0970|0980|0990)$","%d%c >= 0","^\\d+$","^Col(01|02|03|04)_%w$",null,"Το ποσό πρέπει να είναι >= 0","%d%c"]
["03_03","^03$",null,null,"D","Num(%d%c) And Rxm(YOrdinate%w%r%c)"," ^(0010|0020|0030|0040|0050|0060|0070|0080|0090|0100|0110|0120|0130|0140|0150|0160|0170|0180|0190|0200|0210|0220|0230|0240|0250|0260|0270|0280|0290|0300|0310|0320|0330|0340|0350|0360|0370|0380|0390|0400|0410|0420|0430|0440|0450|0460|0470||0590|0600|0610|0620|0630|0640)$","%d%c <= 0 OR %d%c >= 0","^\\d+$","^Col(01|02|03|04)_%w$",null,"Το ποσό πρέπει να είναι >= ή <= 0","%d%c"]

{"sheet":"Π_Χ.Ι.","index":9,"n_rows":48,"n_cols":6,"rows_kept":48,"cut":false,"hidden":false,"merged":[]}
["Κωδικός","Πιστωτικό Ίδρυμα ή Χρηματοδοτικό Ίδρυμα","Κατηγορία","Έχει υιοθετήσει τα Δ.Λ.Π.",null,"Περιγραφή κατηγορίας"]
[10,"ΤΡΑΠΕΖΑ ΤΗΣ ΕΛΛΑΔΟΣ",1,null,null,"Ελληνικά Πιστωτικά Ιδρύματα"]
[11,"ΕΘΝΙΚΗ ΤΡΑΠΕΖΑ ΤΗΣ ΕΛΛΑΔΟΣ Α.Ε.",1,null,null,"Ελληνικά Πιστωτικά Ιδρύματα"]
[14,"ALPHA ΤΡΑΠΕΖΑ Α.Ε.",1,null,null,"Ελληνικά Πιστωτικά Ιδρύματα"]
[16,"ATTICA BANK  Α.Ε.",1,null,null,"Ελληνικά Πιστωτικά Ιδρύματα"]
[17,"Τράπεζα Πειραιώς Ανώνυμος Εταιρεία",1,null,null,"Ελληνικά Πιστωτικά Ιδρύματα"]
[26,"EUROBANK S.A.",1,null,null,"Ελληνικά Πιστωτικά Ιδρύματα"]
[34,"ΤΡΑΠΕΖΑ OPTIMA BANK Α.Ε.",1,null,null,"Ελληνικά Πιστωτικά Ιδρύματα"]
[39,"BNP Paribas S.A. Athens Branch",4,null,null,"Αλλοδαπά Πιστωτικά Ιδρύματα (EU)"]
[40,"CA Auto Bank GmbH - Hellenic Branch",4,null,null,"Αλλοδαπά Πιστωτικά Ιδρύματα (EU)"]
[50,"BANK SADERAT IRAN",5,null,null,"Αλλοδαπά Πιστωτικά Ιδρύματα (εκτός EU)"]
[56,"AEGEAN BALTIC BANK Α.Ε.",1,null,null,"Ελληνικά Πιστωτικά Ιδρύματα"]
[57,"VIVABANK ΑΕ",1,null,null,"Ελληνικά Πιστωτικά Ιδρύματα"]
[59,"OPEL BANK S.A.",4,null,null,"Αλλοδαπά Πιστωτικά Ιδρύματα (EU)"]
[69,"ΣΥΝΕΤΑΙΡΙΣΤΙΚΗ ΤΡΑΠΕΖΑ ΧΑΝΙΩΝ ΣΥΝ.ΠΕ.",3,null,null,"Συνεταιριστικές Τράπεζες"]
[72,"UniCredit Bank AG",4,null,null,"Αλλοδαπά Πιστωτικά Ιδρύματα (EU)"]
[73,"ΤΡΑΠΕΖΑ ΚΥΠΡΟΥ ΔΗΜΟΣΙΑ ΕΤΑΙΡΕΙΑ ΛΙΜΙΤΕΔ",4,null,null,"Αλλοδαπά Πιστωτικά Ιδρύματα (EU)"]
[75,"ΣΥΝΕΤΑΙΡΙΣΤΙΚΗ ΤΡΑΠΕΖΑ ΗΠΕΙΡΟΥ ΣΥΝ.ΠΕ.",3,null,null,"Συνεταιριστικές Τράπεζες"]
[81,"BANK OF AMERICA EUROPE DAC, ATHENS BRANCH",4,null,null,"Αλλοδαπά Πιστωτικά Ιδρύματα (EU)"]
[84,"CITIBANK EUROPE PLC Ireland",4,null,null,"Αλλοδαπά Πιστωτικά Ιδρύματα (EU)"]
[87,"ΠΑΓΚΡΗΤΙΑ ΤΡΑΠΕΖΑ Α.Ε.",1,null,null,"Ελληνικά Πιστωτικά Ιδρύματα"]
[89,"ΣΥΝΕΤΑΙΡΙΣΤΙΚΗ ΤΡΑΠΕΖΑ ΚΑΡΔΙΤΣΑΣ ΣΥΝ.ΠΕ.",3,null,null,"Συνεταιριστικές Τράπεζες"]
[91,"ΣΥΝΕΤΑΙΡΙΣΤΙΚΗ ΤΡΑΠΕΖΑ ΘΕΣΣΑΛΙΑΣ ΣΥΝ.ΠΕ.",3,null,null,"Συνεταιριστικές Τράπεζες"]
[95,"ΣΥΝΕΤΑΙΡΙΣΤΙΚΗ ΤΡΑΠΕΖΑ ΟΛΥΜΠΟΣ ΣΥΝ.Π.Ε.",3,null,null,"Συνεταιριστικές Τράπεζες"]
[102,"VOLKSWAGEN BANK GΜΒΗ",4,null,null,"Αλλοδαπά Πιστωτικά Ιδρύματα (EU)"]
[105,"BMW AUSTRIA BANK GMBH",4,null,null,"Αλλοδαπά Πιστωτικά Ιδρύματα (EU)"]
[109,"ZIRAAT BANKASI A.S.",5,null,null,"Αλλοδαπά Πιστωτικά Ιδρύματα (εκτός EU)"]
[111,"DEUTSCHE BANK AG",4,null,null,"Αλλοδαπά Πιστωτικά Ιδρύματα (EU)"]
[114,"FIMBank PLC",4,null,null,"Αλλοδαπά Πιστωτικά Ιδρύματα (EU)"]
[115,"Hamburg Commercial Bank AG",4,null,null,"Αλλοδαπά Πιστωτικά Ιδρύματα (EU)"]
[116,"ProCredit Bank (Bulgaria) EAD",4,null,null,"Αλλοδαπά Πιστωτικά Ιδρύματα (EU)"]
[118,"EFG BANK LUXEMBOURG SA",4,null,null,"Αλλοδαπά Πιστωτικά Ιδρύματα (EU)"]
[119,"ABN AMRO BANK N.V.",4,null,null,"Αλλοδαπά Πιστωτικά Ιδρύματα (EU)"]
[121,"BANK OF CHINA (EUROPE) S.A.-ΥΠΟΚΑΤΑΣΤΗΜΑ ΑΘΗΝΑΣ",4,null,null,"Αλλοδαπά Πιστωτικά Ιδρύματα (EU)"]
[122,"BFF BANK S.P.A. ΕΛΛΗΝΙΚΟ ΥΠΟΚΑΤΑΣΤΗΜΑ  ",4,null,null,"Αλλοδαπά Πιστωτικά Ιδρύματα (EU)"]
[123,"Santander Consumer Finance, S.A.  ",4,null,null,"Αλλοδαπά Πιστωτικά Ιδρύματα (EU)"]
[124,"J.P. MORGAN SE – ATHENS BRANCH",4,null,null,"Αλλοδαπά Πιστωτικά Ιδρύματα (EU)"]
[125,"TBI BANK EAD- BRANCH GREECE",4,null,null,"Αλλοδαπά Πιστωτικά Ιδρύματα (EU)"]
[126,"Goldman Sachs Bank Europe SE, Athens Branch",4,null,null,"Αλλοδαπά Πιστωτικά Ιδρύματα (EU)"]
[127,"Eurobank Private Bank Luxembourg, Athens Branch",4,null,null,"Αλλοδαπά Πιστωτικά Ιδρύματα (EU)"]
[128,"SNAPPI S.A.",1,null,null,"Ελληνικά Πιστωτικά Ιδρύματα"]
[301,"ALPHA ΧΡΗΜΑΤΟΔΟΤΙΚΩΝ ΜΙΣΘΩΣΕΩΝ Α.Ε.",7,null,null,"Εταιρείες Χρηματοδ. Μίσθωσης (Leasing)"]
[303,"HELLAS CAPITAL LEASING ΑΕ",7,null,null,"Εταιρείες Χρηματοδ. Μίσθωσης (Leasing)"]
[304,"ΕΘΝΙΚΗ ΧΡΗΜΑΤΟΔΟΤΙΚΩΝ ΜΙΣΘΩΣΕΩΝ Α.Ε.",7,null,null,"Εταιρείες Χρηματοδ. Μίσθωσης (Leasing)"]
[310,"PROBANK ΧΡΗΜΑΤΟΔΟΤΙΚΕΣ ΜΙΣΘΩΣΕΙΣ ΑΕ",7,null,null,"Εταιρείες Χρηματοδ. Μίσθωσης (Leasing)"]
[313,"EUROBANK ΧΡΗΜΑΤΟΔΟΤΙΚΕΣ ΜΙΣΘΩΣΕΙΣ ΜΟΝΟΠΡΟΣΩΠΗ ΑΝΩΝΥΜΗ ΕΤΑΙΡΕΙΑ",7,null,null,"Εταιρείες Χρηματοδ. Μίσθωσης (Leasing)"]
[314,"SUNSHINE LEASES ΜΟΝΟΠΡΟΣΩΠΗ ΑΝΩΝΥΜΗ ΕΤΑΙΡΕΙΑ",7,null,null,"Εταιρείες Χρηματοδ. Μίσθωσης (Leasing)"]
[315,"ΠΕΙΡΑΙΩΣ ΧΡΗΜΑΤΟΔΟΤΙΚΕΣ ΜΙΣΘΩΣΕΙΣ ΜΟΝΟΠΡΟΣΩΠΗ ΑΝΩΝΥΜΗ ΕΤΑΙΡΕΙΑ",7,null,null,"Εταιρείες Χρηματοδ. Μίσθωσης (Leasing)"]

{"sheet":"Παράμετροι","index":10,"n_rows":103,"n_cols":21,"rows_kept":103,"cut":false,"hidden":true,"merged":[]}
[]
[]
["Φύλλο Εργασίας","Ενότητα","Κατηγορία πεδίου","Ονομα πεδίου","Αριθμός στήλης","Κωδικός στήλης","Θέση από","Μήκος","Τύπος δεδομένων","Τύπος δεδομένων ελέγχου","Τύπος Διαστήματος","Υποχρεωτικό","Πλήθος Δεκαδικών","Ελάχιστη Τιμή","Μέγιστη Τιμή","Σχόλιο","Όνομα Πεδίου","Μορφοποίηση","ColumnOffset","RowOffset","Πεδίο βάσης"]
["00","H","Γενικά Στοιχεία Υποδείγματος","Κωδικός Ιδρύματος",null,null,null,4,"Number","Number",null,true,0,0,9999,null,"CIAccount","#000",1,0,"fldCreditInstitutionID"]
["00","H",null,"Επωνυμία",null,null,null,500,"Text","Text",null,true,null,null,null,null,"CI","@",1,0,"fldCreditInstitutionName"]
["00","H",null,"Περίοδος Αναφοράς",null,null,null,10,"Date","Date",null,true,null,"2024-01-01","2100-01-01",null,"Valeur","dd MMM yyyy",1,0,"fldValeur"]
["00","H",null,"Διορθωτική Αποστολή",null,null,null,1,"Number","Number",null,true,0,0,1,null,"Revision","0",1,0,"fldRevision"]
["00","H",null,"Υποσύστημα",null,null,null,5,"Text","Text",null,true,null,null,null,null,"Subsystem","@",1,0,"fldSubsystem"]
["00","H",null,"Έκδοση Υποδείγματος",null,null,null,8,"Text","Text",null,true,null,null,null,null,"TemplateVersion","@",1,0,"fldTemplateVersion"]
["00","H",null,"Έκδοση Παραμέτρων",null,null,null,8,"Number","Number",null,true,0,0,32767,null,"ParameterVersion","@",1,0,"fldParameterVersion"]
["00","H",null,"τύπος υποβολής",null,null,null,25,"Text","Text",null,true,null,null,null,null,"SubmissionType","@",1,0,"fldSubmissionTypeID"]
["01","H","Γενικά Στοιχεία Υποδείγματος","Αρμόδιος Υπάλληλος",null,null,null,50,"Text","Text",null,true,null,null,null,null,"ContactPerson01","@",1,0,"fldContactPersonName01"]
["01","H",null,"Αριθμός Τηλεφώνου",null,null,null,50,"Text","Text",null,true,null,null,null,null,"ContactPersonPhoneNo01","@",1,0,"fldContactPersonPhoneNo01"]
["01","H",null,"Ημερομηνία Συμπλήρωσης",null,null,null,10,"Date","Date",null,true,null,"2024-01-01","2100-01-01",null,"FillInDate01","dd MMM yyyy",1,0,"fldFillInDate01"]
["01","D","Σταθμισμένος μέσος δεικτών","Ποσό σύμβασης (σε χιλ. ευρώ)","010","010",null,12,"Number","Number",null,false,2,-999999999999,999999999999,null,"Col01_01","#,##0.00",0,0,"fldColumn01"]
["01","D",null,"# (αριθμός συμβάσεων)","020","020",null,12,"Number","Number",null,false,0,-999999999999,999999999999,null,"Col02_01","####0",0,0,"fldColumn02"]
["01","D",null,"Σταθμισμένος μέσος όρος ","030","030",null,12,"Number","Number",null,false,1,-999999999999,999999999999,null,"Col03_01","#,##0.0",0,0,"fldColumn03"]
["02","H","Γενικά Στοιχεία Υποδείγματος","Αρμόδιος Υπάλληλος",null,null,null,50,"Text","Text",null,true,null,null,null,null,"ContactPerson02","@",1,0,"fldContactPersonName02"]
["02","H",null,"Αριθμός Τηλεφώνου",null,null,null,50,"Text","Text",null,true,null,null,null,null,"ContactPersonPhoneNo02","@",1,0,"fldContactPersonPhoneNo02"]
["02","H",null,"Ημερομηνία Συμπλήρωσης",null,null,null,10,"Date","Date",null,true,null,"2008-03-31","2100-01-01",null,"FillInDate02","dd/MM/yyyy",1,0,"fldFillInDate02"]
["02","D","Σταθμισμένος μέσος δεικτών","Ποσό σύμβασης (σε χιλ. ευρώ)","010","010",null,12,"Number","Number",null,false,2,-999999999999,999999999999,null,"Col01_02","#,##0.00",0,0,"fldColumn01"]
["02","D",null,"# (αριθμός συμβάσεων)","020","020",null,12,"Number","Number",null,false,0,-999999999999,999999999999,null,"Col02_02","####0",0,0,"fldColumn02"]
["02","D",null,"Ποσό σύμβασης (σε χιλ. ευρώ)","030","030",null,12,"Number","Number",null,false,2,-999999999999,999999999999,null,"Col03_02","#,##0.00",0,0,"fldColumn03"]
["02","D",null,"# (αριθμός συμβάσεων)","040","040",null,12,"Number","Number",null,false,0,-999999999999,999999999999,null,"Col04_02","####0",0,0,"fldColumn04"]
["02","D",null,"Ποσό σύμβασης (σε χιλ. ευρώ)","050","050",null,12,"Number","Number",null,false,2,-999999999999,999999999999,null,"Col05_02","#,##0.00",0,0,"fldColumn05"]
["02","D",null,"# (αριθμός συμβάσεων)","060","060",null,12,"Number","Number",null,false,0,-999999999999,999999999999,null,"Col06_02","####0",0,0,"fldColumn06"]
["05","H","Γενικά Στοιχεία Φύλλου","Αρμόδιος Υπάλληλος",null,null,null,50,"Text","Text",null,true,null,null,null,null,"ContactPerson05","@",1,0,"fldContactPersonName05"]
["05","H",null,"Αριθμός Τηλεφώνου",null,null,null,50,"Text","Text",null,true,null,null,null,null,"ContactPersonPhoneNo05","@",1,0,"fldContactPersonPhoneNo05"]
["05","H",null,"Ημερομηνία Συμπλήρωσης",null,null,null,10,"Date","Date",null,true,null,"2024-01-01","2100-01-01",null,"FillInDate05","dd/MM/yyyy",1,0,"fldFillInDate05"]
["05","D",null,"Λογιστική αξία (ποσά σε χιλ. ευρώ)","010","010",null,12,"Number","Number",null,false,2,-999999999999,999999999999,null,"Col01_05","#,##0.00",0,0,"fldColumn01"]
["05","D",null,"Λογιστική αξία (ποσά σε χιλ. ευρώ) | Αποσβεσμένο κόστος","020","020",null,12,"Number","Number",null,false,2,-999999999999,999999999999,null,"Col02_05","#,##0.00",0,0,"fldColumn02"]
["05","D",null,"Λογιστική αξία (ποσά σε χιλ. ευρώ) | Εύλογη αξία","030","030",null,12,"Number","Number",null,false,2,-999999999999,999999999999,null,"Col03_05","#,##0.00",0,0,"fldColumn03"]
["05","D",null,"Προσαρμογές αποτίμησης (ποσά σε χιλ. ευρώ)","040","040",null,12,"Number","Number",null,false,2,-999999999999,999999999999,null,"Col04_05","#,##0.00",0,0,"fldColumn04"]
["06","H","Γενικά Στοιχεία Φύλλου","Αρμόδιος Υπάλληλος",null,null,null,50,"Text","Text",null,true,null,null,null,null,"ContactPerson06","@",1,0,"fldContactPersonName06"]
["06","H",null,"Αριθμός Τηλεφώνου",null,null,null,50,"Text","Text",null,true,null,null,null,null,"ContactPersonPhoneNo06","@",1,0,"fldContactPersonPhoneNo06"]
["06","H",null,"Ημερομηνία Συμπλήρωσης",null,null,null,10,"Date","Date",null,true,null,"2024-01-01","2100-01-01",null,"FillInDate06","dd/MM/yyyy",1,0,"fldFillInDate06"]
["06","D","Σταθμισμένος μέσος δεικτών","Ποσό σύμβασης (σε χιλ. ευρώ)","010","010",null,12,"Number","Number",null,false,2,-999999999999,999999999999,null,"Col01_06","#,##0.00",0,0,"fldColumn01"]
["06","D",null,"Ποσό σύμβασης (σε χιλ. ευρώ) | Λόγω εξασφάλισης","020","020",null,12,"Number","Number",null,false,2,-999999999999,999999999999,null,"Col02_06","#,##0.00",0,0,"fldColumn02"]
["06","D",null,"Ποσό σύμβασης (σε χιλ. ευρώ) | Λόγω σκοπού","030","030",null,12,"Number","Number",null,false,2,-999999999999,999999999999,null,"Col03_06","#,##0.00",0,0,"fldColumn03"]
["06","D",null,"ε/ο λόγω εξασφάλισης","040","040",null,12,"Number","Number",null,false,2,-999999999999,999999999999,null,"Col04_06","#,##0.00",0,0,"fldColumn04"]
["07","H","Γενικά Στοιχεία Φύλλου","Αρμόδιος Υπάλληλος",null,null,null,50,"Text","Text",null,true,null,null,null,null,"ContactPerson07","@",1,0,"fldContactPersonName07"]
["07","H",null,"Αριθμός Τηλεφώνου",null,null,null,50,"Text","Text",null,true,null,null,null,null,"ContactPersonPhoneNo07","@",1,0,"fldContactPersonPhoneNo07"]
["07","H",null,"Ημερομηνία Συμπλήρωσης",null,null,null,10,"Date","Date",null,true,null,"2024-01-01","2100-01-01",null,"FillInDate07","dd/MM/yyyy",1,0,"fldFillInDate07"]
["07","D","Σταθμισμένος μέσος δεικτών","Ποσό σύμβασης (σε χιλ. ευρώ) | Λόγω εξασφάλισης","010","010",null,12,"Number","Number",null,false,2,-999999999999,999999999999,null,"Col01_07","#,##0.00",0,0,"fldColumn01"]
["07","D",null,"Ποσό σύμβασης (σε χιλ. ευρώ) | Λόγω σκοπού","020","020",null,12,"Number","Number",null,false,2,-999999999999,999999999999,null,"Col02_07","#,##0.00",0,0,"fldColumn02"]
["07","D",null,"Ποσό σύμβασης (σε χιλ. ευρώ) | ε/ο λόγω εξασφάλισης","030","030",null,12,"Number","Number",null,false,2,-999999999999,999999999999,null,"Col03_07","#,##0.00",0,0,"fldColumn03"]
["08","H","Γενικά Στοιχεία Υποδείγματος","Αρμόδιος Υπάλληλος",null,null,null,50,"Text","Text",null,true,null,null,null,null,"ContactPerson08","@",1,0,"fldContactPersonName08"]
["08","H",null,"Αριθμός Τηλεφώνου",null,null,null,50,"Text","Text",null,true,null,null,null,null,"ContactPersonPhoneNo08","@",1,0,"fldContactPersonPhoneNo08"]
["08","H",null,"Ημερομηνία Συμπλήρωσης",null,null,null,10,"Date","Date",null,true,null,"2024-01-01","2100-01-01",null,"FillInDate08","dd/MM/yyyy",1,0,"fldFillInDate08"]
["08","D","Σταθμισμένος μέσος δεικτών","Σταθμισμένος μέσος όρος δεικτών | Λόγω εξασφάλισης","010","010",null,12,"Number","Number",null,false,1,-999999999999,999999999999,null,"Col01_08","#,##0.0",0,0,"fldColumn01"]
["08","D",null,"Σταθμισμένος μέσος όρος δεικτών | Λόγω σκοπού","020","020",null,12,"Number","Number",null,false,1,-999999999999,999999999999,null,"Col02_08","#,##0.0",0,0,"fldColumn02"]
["08","D",null,"Σταθμισμένος μέσος όρος δεικτών | ε/ο λόγω εξασφάλισης","030","030",null,12,"Number","Number",null,false,1,-999999999999,999999999999,null,"Col03_08","#,##0.0",0,0,"fldColumn03"]
["08","D",null,"Αξία υπολογισμού δείκτη (Ποσό σύμβασης σε χιλ. ευρώ) | Λόγω εξασφάλισης","040","040",null,12,"Number","Number",null,false,2,-999999999999,999999999999,null,"Col04_08","#,##0.00",0,0,"fldColumn04"]
["08","D",null,"Αξία υπολογισμού δείκτη (Ποσό σύμβασης σε χιλ. ευρώ) | Λόγω σκοπού","050","050",null,12,"Number","Number",null,false,2,-999999999999,999999999999,null,"Col05_08","#,##0.00",0,0,"fldColumn05"]
["08","D",null,"Αξία υπολογισμού δείκτη (Ποσό σύμβασης σε χιλ. ευρώ) | ε/ο των λόγω εξασφάλισης","060","060",null,12,"Number","Number",null,false,2,-999999999999,999999999999,null,"Col06_08","#,##0.00",0,0,"fldColumn06"]
[null,"         "]
[]
[]
[]
["DATA VALIDATION LISTS"]
["Όνομα Πεδίου","Μετατόπιση Γραμμής","Μετατόπιση Στήλης","Πλήθος Γραμμών","Όνομα Λίστας","Τίτλος Μηνύματος","Πληροφοριακό Μήνυμα","Μήνυμα Λάθους","Μορφοποίηση","Στοίχιση","Γραφή"]
["CIAccount",0,1,1,"BankCodeList","Κωδικός Πιστωτικού Ιδρύματος","Επιλέξτε τον κωδικό του Πιστωτικού Ιδρύματος από τη λίστα. (Ctrl+L)","Μη αποδεκτή τιμή!   Επιλέξτε τον κωδικό του Πιστωτικού Ιδρύματος από τη λίστα.","000",-4131]
["Revision",0,1,1,"0,1","Είδος Αποστολής","Επιλέξτε 0 για κανονική αποστολή ή 1 για διορθωτική. (Ctrl+L)","Μη αποδεκτή τιμή !  Επιλέξτε 0 για κανονική αποστολή ή 1 για διορθωτική","0",-4131]
["Valeur",0,1,1]
[]
[]
["Col07_02",1,0,{"$f":"fnMaxFreeRows(\"02\")","v":65503},"EBA_CounterpartyTypeCodeList","Τύπος Αντισυμβαλλομένου","Επιλέξτε τον Τύπο Αντισυμβαλλομένου από τη λίστα. (Ctrl+L)","Μη αποδεκτή τιμή!   Επιλέξτε τον Τύπο Αντισυμβαλλομένου από τη λίστα.","@",-4108]
["Col03_03",1,0,{"$f":"fnMaxFreeRows(\"03\")","v":0},"0,1","Έμμεση έκθεση σε κίνδυνο","Επιλέξτε 0 = ΟΧΙ ή 1 = ΝΑΙ.","Μη αποδεκτή τιμή !  Επιλέξτε 0 = ΟΧΙ ή 1 = ΝΑΙ.","0",-4131]
["Col03_04",1,0,{"$f":"fnMaxFreeRows(\"04\")","v":0},"0,1","Έμμεση έκθεση σε κίνδυνο","Επιλέξτε 0 = ΟΧΙ ή 1 = ΝΑΙ.","Μη αποδεκτή τιμή !  Επιλέξτε 0 = ΟΧΙ ή 1 = ΝΑΙ.","0",-4131]
["Col04_04",1,0,{"$f":"fnMaxFreeRows(\"04\")","v":0},"EBA_ConnectionTypeCodeList","Είδος διασύνδεσης ","Επιλέξτε το Είδος διασύνδεσης από τη λίστα. (Ctrl+L)","Μη αποδεκτή τιμή!   Επιλέξτε το Είδος διασύνδεσης από τη λίστα.","@",-4108]
[]
[]
[]
[]
[]
[]
[]
[]
["SELECT FROM DATA VALIDATION LISTS (Ctrl + L)",null,null,null,null,null,"Παράμετροι Combo Box",null,"Παράμετροι Vlookup",null,null,"Παράμετροι Vlookup2"]
["Όνομα Πεδίου","Όνομα Λίστας","Κάτω Όριο Γραμμής","Άνω Όριο Γραμμής","Κάτω Όριο Στήλης","Άνω Όριο Στήλης","Πλήθος Στηλών","Μήκη Στηλών","Μετατόπιση Γραμμής","Μετατόπιση Στήλης","Εμφανιζόμενη Στήλη","Μετατόπιση Γραμμής","Μετατόπιση Στήλης","Εμφανιζόμενη Στήλη"]
["CIAccount","BankList",0,0,1,1,4,"0 cm;5 cm",1,0,2,0,3,3]
[]
["SubmissionType","COR25SubmissionTypeList",0,0,1,1,3,"0 cm;5 cm;5 cm",0,1,2,0]
["Col01_02","EBA_CounterpartyList#",1,{"$f":"fnMaxFreeRows(\"02\")","v":65503},"0",0,2,"0 cm;5 cm",0,1,2]
["Col01_03","DLc010_02#",1,{"$f":"fnMaxFreeRows(\"03\")","v":0},"0",0,2,"0 cm;5 cm"]
["Col01_04","DLc010_02#1_*",1,{"$f":"fnMaxFreeRows(\"04\")","v":0},"0",0,2,"0 cm;5 cm"]
["Col02_04","DLc010_02#2_*",1,{"$f":"fnMaxFreeRows(\"04\")","v":0},"0",0,2,"0 cm;5 cm"]
["Col01_05","DLc010_03#",1,{"$f":"fnMaxFreeRows(\"05\")","v":65503},"0",0,2,"0 cm;5 cm"]
["Col01_06","DLc010_04#1_*",1,{"$f":"fnMaxFreeRows(\"06\")","v":65502},"0",0,2,"0 cm;5 cm"]
["Col02_06","DLc010_04#2_*",1,{"$f":"fnMaxFreeRows(\"06\")","v":65502},"0",0,2,"0 cm;5 cm"]
["ZOrdinate02","EBA_CountryList",1,{"$f":"fnMaxFreeRows(\"02\")","v":65503},"0",0,2,"0 cm;5 cm",0,1,2]
[]
[]
[]
[]
[]
["FILL IN STATUS"]
["01"]
["02"]
["03"]
["04"]
["05"]
["06"]

{"sheet":"Αποτελέσματα Φόρτωσης","index":11,"n_rows":2,"n_cols":2,"rows_kept":2,"cut":false,"hidden":true,"merged":[]}
["Το αρχείο φόρτωσης: 'C:\\BSD\\COR28\\COR28_Empty-RepeatingRows.txt' περιέχει λανθασμένο κωδικό Υποσυστήματος ή έκδοση υποδείγματος!\nTemplateVersion: 00.00.03","ImportExport/fnImportFromText"]
["Η διαδικασία φόρτωσης από αρχείο δεν ολοκληρώθηκε με επιτυχία.\n\nΑφού γίνουν οι απαραίτητες διορθώσεις η διαδικασία θα πρέπει να επαναληφθεί.","ImportExport/fnImportFromText"]

{"sheet":"ΜεταβολεςΥποδειγμ","index":12,"n_rows":13,"n_cols":9,"rows_kept":13,"cut":false,"hidden":true,"merged":[]}
["ΜΕΤΑΒΟΛΕΣ ΥΠΟΔΕΙΓΜΑΤΟΣ"]
[]
[]
["Α/Α","Από:","Σε:","Φύλλο Εργασίας","Ισχύς","fldRowID","fldFieldInfoID","fldDataExportConfigurationInfoID","Μεταβολή"]
["1. "," Έκδοση 01.00.01",null,null,"2020-10-09",1,1,1,"Αρχική έκδοση: έχει αφαιρεθεί το ανώτατο όριο για τη στήλη 03 του Worksheet Name 01. σε σχέση με την έκδοση 01.00.00 που ήταν η αρχική στο τεστ περιβάλλον."]
["2."," Έκδοση 01.00.01"," Έκδοση 01.00.02","ΟδηγΣυμπληρ","2021-01-01",2,2,1,"Αλλαγή στον πίνακα tblFieldInfo (προσθήκη γραμμής), Αλλαγές στα λεκτικά, Ενημέρωση λίστας Π_Χ.Ι και Υποστήριξη αρνητικών τιμών  σε όλα τα πεδία των ΡΟΩΝ (γραμμές 0010 μέχρι και 0470, καθώς και στις γραμμές 0590 με 0640"]
["3."," Έκδοση 01.00.02"," Έκδοση 01.00.03",null,"2021-09-25",2,2,1," ΔΧΣ-2021-03, Λεκτικές Μεταβολές, Ανανέωση της λίστας Π_Χ.Ι., Νέες λειτουργικότητες:  Ενσωμάτωση ελέγχων στο Φύλλο 01: 1)  Για τις γραμμές 0030-0140,  η σύγκριση θα γίνεται με τα σύνολα της γραμμής 0020, 2)  Τα στοιχεία στις γραμμές 0260-0340, 0500-0570, 0610-0690, 0730-0830, 0870-0940, 0980-1060 θα πρέπει να αθροίζουν στο σύνολο της γραμμής 0020, 3)  Τα στοιχεία στις γραμμές 1120-1200 θα πρέπει να αθροίζουν στο σύνολο της γραμμής 1080"]
["4."," Έκδοση 01.00.03"," Έκδοση 01.00.04",null,"2021-12-31",3,3,1,"ΔΧΣ-2021-04, Λεκτικές Μεταβολές στο φύλλο 01,Προσθήκη στήλης G στο φύλλο 04, Αλλαγή στη φόρμουλα υπολογισμού συνόλου σε κάθε πεδίο θα απλοποιηθεί στη μορφή: sum(FXX*GXX)_forall/sum(GXX)_forall, όπου XX στο εύρος 33 με 50 και 52 με 69"]
["5."," Έκδοση 01.00.04"," Έκδοση 01.00.05",null,"2022-03-15",4,3,1,"Λεκτικές Μεταβολές στο φύλλο 01 και 02, Στο φύλλο 03, στη στήλη 040 του συνόλου, πράσινο χρώμα όταν συγκρινόμενο με το άθροισμα των 3 πρώτων στηλών υπάρχει απόκλιση 0,01 , • Στο φύλλο 04, στη στήλη 010, θα πρέπει να υλοποιηθεί υποστήριξη εμφάνισης του συμβόλου %  εντός των πεδίων για το LTV-O (γραμμές 0010 έως 0060) και το LTV-C (0200 έως 0250), παρόμοια με τα αντίστοιχα πεδία για LTV του φύλλου 01."]
["6."," Έκδοση 01.00.05"," Έκδοση 01.00.06",null,"2023-03-21",4,3,1,"Εχει αφαιρεθεί το ΚΑΠΙ της Συνεταιριστικής Όλυμπος από το υπόδειγμα της ΠΕΕ 175 "]
["7."," Έκδοση 01.00.06"," Έκδοση 01.00.07",null,"2023-09-21",4,3,1,"1.\tκαταχώρηση στην εφαρμογή Pashportv3 των στοιχείων του νέου ΠΙ (Κωδικός: 127, Επωνυμία: “Eurobank Private Bank Luxembourg S.A., Athens Branch”, Κατηγορία: 4) από 10.07.2023 (σχετικό ΕΓΓΡ ΔΕΠΣ Νο 912/06.07.2023),\n2.\tχαρακτηρισμός ως ανενεργού του ΠΙ “HSBC Continental Europe” (Κωδικός: 071, Επωνυμία: “HSBC CONTINENTAL EUROPE, GREECE”, Κατηγορία: 4) από 28.07.2023 (σχετικό ΕΓΓΡ ΔΕΠΣ Νο 972/31.07.2023),\n3.\tενημέρωση του υποδείγματος FSD01 για τις παραπάνω αναφερόμενες μεταβολές."]
["8."," Έκδοση 01.00.07"," Έκδοση 01.00.08",null,"2024-01-10",4,3,1,"1.\tχαρακτηρισμός ως ανενεργού του ΠΙ “ ΣΥΝΕΤΑΙΡΙΣΤΙΚΗ ΤΡΑΠΕΖΑ ΚΕΝΤΡΙΚΗΣ ΜΑΚΕΔΟΝΙΑΣ” (Κωδικός: 099, Επωνυμία: “ ΣΥΝΕΤΑΙΡΙΣΤΙΚΗΣ ΤΡΑΠΕΖΑΣ ΚΕΝΤΡΙΚΗΣ ΜΑΚΕΔΟΝΙΑΣ ΣΥΝ.ΠΕ.”, Κατηγορία: 2) από 28.12.2023 (σχετικό ΕΓΓΡ ΔΕΠΣ Νο 01/02.01.2024),\n2.\tενημέρωση του υποδείγματος FSD01 για την παραπάνω αναφερόμενη μεταβολή."]
["9."," Έκδοση 01.00.08"," Έκδοση 01.01.00",null,"2024-11-01",4,3,1,"Λεκτικές Μεταβολές στο φύλλο 01 και 02, Στο φύλλο 03, στη στήλη 040 του συνόλου, πράσινο χρώμα όταν συγκρινόμενο με το άθροισμα των 3 πρώτων στηλών υπάρχει απόκλιση 0,01 , • Στο φύλλο 04, στη στήλη 010, θα πρέπει να υλοποιηθεί υποστήριξη εμφάνισης του συμβόλου %  εντός των πεδίων για το LTV-O (γραμμές 0010 έως 0060) και το LTV-C (0200 έως 0250), παρόμοια με τα αντίστοιχα πεδία για LTV του φύλλου 01."]